Service Delivery Area(T),Service Delivery Team(T),CostC,ExpenditureGroup(T),Account(T),Supplier Name(T),Trans Date, Amount 
Care & Support,Commissioning for Children and Young People & Families,HHAD,Third Party Payments,Health Funded Services,SHROPSHIRE COMMUNITY HEALTH NHS TRUST,29/05/2012," 26,642.00 "
Care & Support,Integrated Disabilities,HDAA,Supplies & Services,Photocopying,XEROX FINANCE,10/05/2012, 540.29 
Care & Support,Integrated Disabilities,HDAG,Supplies & Services,Aids & Appliances,PRISM MEDICAL WESTHOLME DIVISION,18/05/2012, 509.00 
Care & Support,Integrated Disabilities,HDAK,Income,Fees & Charges General,NEW OPTIONS (3) LTD,23/05/2012," 1,109.29 "
Care & Support,Integrated Disabilities,JSAA,Employees,Agency Supply Costs,OUTCOMES UK LTD,16/05/2012, 850.50 
Care & Support,Integrated Disabilities,JSAA,Employees,Agency Supply Costs,OUTCOMES UK LTD,10/05/2012," 1,368.00 "
Care & Support,Integrated Disabilities,JSAA,Transport-Related Expenditure,Mileage,REDACTED PERSONAL INFORMATION,16/05/2012, 571.59 
Care & Support,Integrated Disabilities,KNAA,Supplies & Services,Other Tuition Fees,Manchester City Council,23/05/2012, 801.00 
Care & Support,Integrated Disabilities,KNAA,Third Party Payments,Agency Services,CASTLECARE EDUCATION LTD,29/05/2012," 78,490.94 "
Care & Support,Integrated Disabilities,KNAA,Third Party Payments,Agency Services,NEW OPTIONS (3) LTD,29/05/2012," 28,388.08 "
Care & Support,Integrated Disabilities,KNAA,Third Party Payments,Agency Services,NEW HORIZONS CHILD CARE LTD,23/05/2012," 10,240.00 "
Care & Support,Integrated Disabilities,KNAJ,Supplies & Services,Aids & Appliances,PHONAK UK LTD,03/05/2012, 798.00 
Care & Support,"Joint Commissioning - Mental Health, Learning Disbaility & Substance Misuse",HASA,Supplies & Services,Other Grants (Expenses),TAKING PART,09/05/2012," 16,458.00 "
Care & Support,"Joint Commissioning - Mental Health, Learning Disbaility & Substance Misuse",HHAB,Supplies & Services,Consultants Fees,TELFORD & WREKIN PCT,31/05/2012," 2,200.00 "
Care & Support,"Joint Commissioning - Mental Health, Learning Disbaility & Substance Misuse",HJAA,Supplies & Services,Other Grants (Expenses),WRVS,09/05/2012," 6,305.13 "
Care & Support,"Joint Commissioning - Mental Health, Learning Disbaility & Substance Misuse",HPAE,Supplies & Services,Other Grants (Expenses),THE WREKIN HOUSING TRUST,09/05/2012," 12,600.00 "
Care & Support,Learning Disabilities,HLAC,Supplies & Services,Other Grants (Expenses),TAKING PART,09/05/2012," 50,000.00 "
Care & Support,Learning Disabilities,HLAL,Premises-Related Expenditure,General Rents,BOURNVILLE VILLAGE TRUST,25/05/2012," 2,204.10 "
Care & Support,Learning Disabilities,HLAL,Premises-Related Expenditure,General Rents,BOURNVILLE VILLAGE TRUST,25/05/2012," 2,173.74 "
Care & Support,Learning Disabilities,HLAL,Third Party Payments,Health Funded Services,DIMENSIONS (UK) LTD,14/05/2012," 36,103.50 "
Care & Support,Learning Disabilities,HLAL,Third Party Payments,Health Funded Services,DIMENSIONS (UK) LTD,14/05/2012," 30,056.17 "
Care & Support,Learning Disabilities,HLAL,Third Party Payments,Health Funded Services,DIMENSIONS (UK) LTD,14/05/2012," 26,478.00 "
Care & Support,Learning Disabilities,HLAL,Third Party Payments,Health Funded Services,DIMENSIONS (UK) LTD,14/05/2012," 43,324.20 "
Care & Support,Learning Disabilities,HLAL,Third Party Payments,Health Funded Services,ACCORD HOUSING ASSOCIATION LIMITED,01/05/2012," 34,138.34 "
Care & Support,Learning Disabilities,HLAL,Third Party Payments,Health Funded Services,DIMENSIONS (UK) LTD,01/05/2012," 3,132.00 "
Care & Support,Learning Disabilities,HLAL,Third Party Payments,Health Funded Services,DIMENSIONS (UK) LTD,22/05/2012," 37,273.75 "
Care & Support,Learning Disabilities,HLAL,Third Party Payments,Health Funded Services,DIMENSIONS (UK) LTD,22/05/2012," 44,728.50 "
Care & Support,Learning Disabilities,HLAL,Third Party Payments,Health Funded Services,DIMENSIONS (UK) LTD,22/05/2012," 31,024.37 "
Care & Support,Learning Disabilities,HLAL,Third Party Payments,Health Funded Services,DIMENSIONS (UK) LTD,22/05/2012," 27,327.40 "
Care & Support,Learning Disabilities,HLAL,Third Party Payments,Health Funded Services,DIMENSIONS (UK) LTD,01/05/2012," 3,132.00 "
Care & Support,Learning Disabilities,HLAL,Third Party Payments,Preserved Rights,VISION HOMES ASSOCIATION,21/05/2012," 49,176.60 "
Care & Support,Learning Disabilities,HLBA,Premises-Related Expenditure,Gas,West Mercia Energy (WME),09/05/2012," 1,117.13 "
Care & Support,Learning Disabilities,HLBC,Supplies & Services,Equipment - Purchase,QUEST 88 LIMITED,02/05/2012," 6,120.00 "
Care & Support,Learning Disabilities,HLBC,Supplies & Services,Equipment - Purchase,BUSINESS FURNITURE ONLINE LTD,02/05/2012," 1,536.00 "
Care & Support,Learning Disabilities,HLBC,Supplies & Services,Equipment - Purchase,QUEST 88 LIMITED,02/05/2012," 1,622.16 "
Care & Support,Learning Disabilities,HLCB,Supplies & Services,Equipment - Purchase,SELF UNLIMITED,01/05/2012," 15,000.00 "
Care & Support,Learning Disabilities,HLCB,Supplies & Services,Equipment - Purchase,TELFORD & WREKIN PCT,01/05/2012," 39,393.00 "
Care & Support,Learning Disabilities,HLCE,Premises-Related Expenditure,General Rents,THE WREKIN HOUSING TRUST,03/05/2012," 1,605.55 "
Care & Support,Learning Disabilities,HLCH,Third Party Payments,Homecare Expenditure,CLEANIT CLEANING SERVICES,03/05/2012, 747.50 
Care & Support,Learning Disabilities,HLCK,Supplies & Services,Respite Care,LEONARD CHESHIRE DISABILITY,28/05/2012," 23,135.93 "
Care & Support,Learning Disabilities,HLCL,Third Party Payments,Residential Expenditure,BOURNVILLE VILLAGE TRUST,22/05/2012," 61,163.00 "
Care & Support,Learning Disabilities,HLDE,Premises-Related Expenditure,General Rents,TELFORD COLLEGE OF ARTS & TECHNOLOGY,01/05/2012, 613.83 
Care & Support,Learning Disabilities,HLEC,Premises-Related Expenditure,Gas,West Mercia Energy (WME),04/05/2012, 535.05 
Care & Support,Learning Disabilities,HLEC,Premises-Related Expenditure,Clean Mats & Toilet Requisites,PHS ALL CLEAR,22/05/2012," 1,085.50 "
Care & Support,Learning Disabilities,HMBE,Third Party Payments,Health Funded Services,ACCORD HOUSING ASSOCIATION LIMITED,02/05/2012," 16,095.34 "
Care & Support,Learning Disabilities,HMBE,Third Party Payments,Residential Expenditure,ACCORD HOUSING ASSOCIATION LIMITED,02/05/2012," 39,692.21 "
Care & Support,Learning Disabilities,HOAL,Third Party Payments,Homecare Expenditure,CLEANIT CLEANING SERVICES,03/05/2012, 747.50 
Care & Support,Mental Health & Substance Misuse,HMAA,Supplies & Services,Service Contracts,SRCL LTD,04/05/2012, 613.77 
Care & Support,Mental Health & Substance Misuse,HMAP,Supplies & Services,Equipment - Purchase,S STAFFORDSHIRE & SHROPSHIRE HEALTHCARE,24/05/2012," 2,849.08 "
Care & Support,Mental Health & Substance Misuse,HPAB,Supplies & Services,Comp Software (Purch / Hire),CARE MONITORING 2000 LTD,01/05/2012," 6,866.66 "
Care & Support,Older People & Physical Disability,HJAC,Supplies & Services,Aids & Appliances,Wealden & Eastbourne Lifeline,10/05/2012," 87,000.00 "
Care & Support,Older People & Physical Disability,HOAC,Supplies & Services,Purchased Meals,APETITO LTD,04/05/2012," 1,662.58 "
Care & Support,Older People & Physical Disability,HOAC,Supplies & Services,Purchased Meals,APETITO LTD,09/05/2012," 1,422.02 "
Care & Support,Older People & Physical Disability,HOAC,Supplies & Services,Purchased Meals,APETITO LTD,24/05/2012," 1,546.02 "
Care & Support,Older People & Physical Disability,HOAC,Supplies & Services,Purchased Meals,APETITO LTD,24/05/2012," 1,493.94 "
Care & Support,Older People & Physical Disability,HOAC,Supplies & Services,Purchased Meals,APETITO LTD,24/05/2012," 1,667.54 "
Care & Support,Older People & Physical Disability,HOAC,Transport-Related Expenditure,Mileage,WRVS,24/05/2012, 746.88 
Care & Support,Older People & Physical Disability,HOAP,Supplies & Services,Equipment - Repair,HANDICARE ACCESSIBILITY LIMITED,01/05/2012, 507.50 
Care & Support,Older People & Physical Disability,HOAP,Supplies & Services,Aids & Appliances,PATTERSON MEDICAL LTD,03/05/2012, 512.90 
Care & Support,Older People & Physical Disability,HOAP,Supplies & Services,Aids & Appliances,PATTERSON MEDICAL LTD,02/05/2012," 1,251.90 "
Care & Support,Older People & Physical Disability,HOAP,Supplies & Services,Aids & Appliances,PATTERSON MEDICAL LTD,02/05/2012, 869.15 
Care & Support,Older People & Physical Disability,HOAP,Supplies & Services,Aids & Appliances,BERWICK CARE EQUIPMENT LTD,15/05/2012," 1,797.00 "
Care & Support,Older People & Physical Disability,HOAP,Supplies & Services,Aids & Appliances,BERWICK CARE EQUIPMENT LTD,15/05/2012," 1,650.00 "
Care & Support,Older People & Physical Disability,HOAP,Supplies & Services,Aids & Appliances,PRISM MEDICAL WESTHOLME DIVISION,16/05/2012, 700.00 
Care & Support,Older People & Physical Disability,HOAP,Supplies & Services,Aids & Appliances,PRISM MEDICAL WESTHOLME DIVISION,16/05/2012, 643.00 
Care & Support,Older People & Physical Disability,HOAP,Supplies & Services,Aids & Appliances,PRISM MEDICAL WESTHOLME DIVISION,16/05/2012, 582.50 
Care & Support,Older People & Physical Disability,HOAP,Supplies & Services,Aids & Appliances,MOUNTWAY LTD,21/05/2012, 771.00 
Care & Support,Older People & Physical Disability,HOAP,Supplies & Services,Aids & Appliances,MANGAR INTERNATIONAL LTD,03/05/2012," 6,000.00 "
Care & Support,Older People & Physical Disability,HOAP,Supplies & Services,Adaptations,TRAVIS PERKINS TRADING CO LIMITED,01/05/2012, 820.00 
Care & Support,Older People & Physical Disability,HOAW,Employees,Training Exp's (Facilitators),ROYAL COLLEGE OF NURSING,31/05/2012," 1,000.00 "
Care & Support,Older People & Physical Disability,HOBB,Supplies & Services,Equipment - Purchase,SHREWSBURY & TELFORD HOSPITAL NHS TRUST,16/05/2012," 1,080.00 "
Care & Support,Older People & Physical Disability,HOBB,Supplies & Services,Equipment - Purchase,SHREWSBURY & TELFORD HOSPITAL NHS TRUST,16/05/2012," 1,035.00 "
Care & Support,Older People & Physical Disability,HOBN,Third Party Payments,Daycare Expenditure,BRIDGE HOUSE CARE LTD,01/05/2012," 1,540.00 "
Care & Support,Older People & Physical Disability,HOBN,Third Party Payments,Homecare Expenditure,GRAY HEALTHCARE,18/05/2012,"-4,620.72 "
Care & Support,Older People & Physical Disability,HOBN,Third Party Payments,Homecare Expenditure,SELF UNLIMITED,09/05/2012," 4,612.68 "
Care & Support,Older People & Physical Disability,HOBN,Third Party Payments,Homecare Expenditure,AMG NURSING & CARE SERVICES,15/05/2012,"-5,054.70 "
Care & Support,Older People & Physical Disability,HOBN,Third Party Payments,Homecare Expenditure,ALLIED HEALTHCARE GROUP LTD,15/05/2012,"-51,326.12 "
Care & Support,Older People & Physical Disability,HOBN,Third Party Payments,Homecare Expenditure,ADVANTAGE HEALTHCARE GROUP,09/05/2012," 6,445.96 "
Care & Support,Older People & Physical Disability,HOBN,Third Party Payments,Homecare Expenditure,ALLIED HEALTHCARE GROUP LTD,09/05/2012," 51,326.12 "
Care & Support,Older People & Physical Disability,HOBN,Third Party Payments,Homecare Expenditure,BETHPHAGE,09/05/2012," 12,596.72 "
Care & Support,Older People & Physical Disability,HOBN,Third Party Payments,Homecare Expenditure,BARCHESTER HEALTHCARE,09/05/2012," 24,682.80 "
Care & Support,Older People & Physical Disability,HOBN,Third Party Payments,Homecare Expenditure,ARABELLA HEALTH STAFFING LTD T/A BNA,09/05/2012, 525.75 
Care & Support,Older People & Physical Disability,HOBN,Third Party Payments,Homecare Expenditure,CAREWATCH (MID SHROPSHIRE),09/05/2012," 5,191.46 "
Care & Support,Older People & Physical Disability,HOBN,Third Party Payments,Homecare Expenditure,CARRADICE CARE LTD,09/05/2012," 10,911.81 "
Care & Support,Older People & Physical Disability,HOBN,Third Party Payments,Homecare Expenditure,AMG NURSING & CARE SERVICES,09/05/2012," 5,054.70 "
Care & Support,Older People & Physical Disability,HOBN,Third Party Payments,Homecare Expenditure,CHOICES HOUSING ASSOCIATION LTD,09/05/2012," 6,738.48 "
Care & Support,Older People & Physical Disability,HOBN,Third Party Payments,Homecare Expenditure,CREATIVE SUPPORT LTD,09/05/2012," 42,507.40 "
Care & Support,Older People & Physical Disability,HOBN,Third Party Payments,Homecare Expenditure,PRESTIGE NURSING LIMITED,09/05/2012, 729.28 
Care & Support,Older People & Physical Disability,HOBN,Third Party Payments,Homecare Expenditure,SEVACARE (UK) LIMITED,09/05/2012," 30,246.79 "
Care & Support,Older People & Physical Disability,HOBN,Third Party Payments,Homecare Expenditure,PRIORITY CARE (SHROPSHIRE) LTD,09/05/2012," 83,112.35 "
Care & Support,Older People & Physical Disability,HOBN,Third Party Payments,Homecare Expenditure,PROSPECTS FPWLD,09/05/2012," 13,594.44 "
Care & Support,Older People & Physical Disability,HOBN,Third Party Payments,Homecare Expenditure,TENDER CARE,09/05/2012," 5,162.41 "
Care & Support,Older People & Physical Disability,HOBN,Third Party Payments,Homecare Expenditure,WREKIN CARE CO-OPERATIVE LIMITED,09/05/2012," 12,710.90 "
Care & Support,Older People & Physical Disability,HOBN,Third Party Payments,Homecare Expenditure,WELLINGTON & DISTRICT COTTAGE HOSPITAL,09/05/2012," 13,307.75 "
Care & Support,Older People & Physical Disability,HOBN,Third Party Payments,Homecare Expenditure,WE ARE THE CARE COMPANY LTD,09/05/2012," 23,768.24 "
Care & Support,Older People & Physical Disability,HOBN,Third Party Payments,Homecare Expenditure,CARRADICE CARE LTD,16/05/2012,"-10,911.81 "
Care & Support,Older People & Physical Disability,HOBN,Third Party Payments,Homecare Expenditure,COMPLETE CARE HOLDINGS LTD,16/05/2012," 23,671.45 "
Care & Support,Older People & Physical Disability,HOBN,Third Party Payments,Homecare Expenditure,CREATIVE SUPPORT LTD,16/05/2012," 42,507.40 "
Care & Support,Older People & Physical Disability,HOBN,Third Party Payments,Homecare Expenditure,CAREWATCH (MID SHROPSHIRE),16/05/2012,"-5,191.46 "
Care & Support,Older People & Physical Disability,HOBN,Third Party Payments,Homecare Expenditure,DIMENSIONS (UK) LTD,09/05/2012," 9,500.40 "
Care & Support,Older People & Physical Disability,HOBN,Third Party Payments,Homecare Expenditure,ADVANTAGE HEALTHCARE GROUP,15/05/2012,"-6,445.96 "
Care & Support,Older People & Physical Disability,HOBN,Third Party Payments,Homecare Expenditure,GRAY HEALTHCARE,09/05/2012," 3,080.48 "
Care & Support,Older People & Physical Disability,HOBN,Third Party Payments,Homecare Expenditure,D H Homecare Limited,09/05/2012," 80,079.79 "
Care & Support,Older People & Physical Disability,HOBN,Third Party Payments,Homecare Expenditure,HEALTH CARE SUPPORT SERVICES,09/05/2012," 4,054.96 "
Care & Support,Older People & Physical Disability,HOBN,Third Party Payments,Homecare Expenditure,BARCHESTER HEALTHCARE,15/05/2012,"-24,682.80 "
Care & Support,Older People & Physical Disability,HOBN,Third Party Payments,Homecare Expenditure,HAVE A CARE,09/05/2012," 1,277.80 "
Care & Support,Older People & Physical Disability,HOBN,Third Party Payments,Homecare Expenditure,HELPING HANDS HOMECARE,09/05/2012," 1,978.48 "
Care & Support,Older People & Physical Disability,HOBN,Third Party Payments,Homecare Expenditure,Home Instead,09/05/2012," 7,555.76 "
Care & Support,Older People & Physical Disability,HOBN,Third Party Payments,Homecare Expenditure,HAVE A CARE,16/05/2012,"-1,277.80 "
Care & Support,Older People & Physical Disability,HOBN,Third Party Payments,Homecare Expenditure,DIMENSIONS (UK) LTD,16/05/2012,"-9,500.40 "
Care & Support,Older People & Physical Disability,HOBN,Third Party Payments,Homecare Expenditure,D H Homecare Limited,16/05/2012,"-80,079.79 "
Care & Support,Older People & Physical Disability,HOBN,Third Party Payments,Homecare Expenditure,GRAY HEALTHCARE,16/05/2012,"-3,080.48 "
Care & Support,Older People & Physical Disability,HOBN,Third Party Payments,Homecare Expenditure,HEALTH CARE SUPPORT SERVICES,16/05/2012," 4,054.96 "
Care & Support,Older People & Physical Disability,HOBN,Third Party Payments,Homecare Expenditure,SEVACARE (UK) LIMITED,23/05/2012,"-28,458.03 "
Care & Support,Older People & Physical Disability,HOBN,Third Party Payments,Homecare Expenditure,BETHPHAGE,23/05/2012,"-12,596.72 "
Care & Support,Older People & Physical Disability,HOBN,Third Party Payments,Homecare Expenditure,COMPLETE CARE HOLDINGS LTD,09/05/2012," 23,671.45 "
Care & Support,Older People & Physical Disability,HOBN,Third Party Payments,Homecare Expenditure,WE ARE THE CARE COMPANY LTD,16/05/2012,"-23,768.24 "
Care & Support,Older People & Physical Disability,HOBN,Third Party Payments,Homecare Expenditure,WREKIN CARE CO-OPERATIVE LIMITED,16/05/2012,"-12,710.90 "
Care & Support,Older People & Physical Disability,HOBN,Third Party Payments,Homecare Expenditure,SELF UNLIMITED,16/05/2012,"-4,612.68 "
Care & Support,Older People & Physical Disability,HOBN,Third Party Payments,Homecare Expenditure,TENDER CARE,16/05/2012,"-5,162.41 "
Care & Support,Older People & Physical Disability,HOBN,Third Party Payments,Homecare Expenditure,PRIORITY CARE (SHROPSHIRE) LTD,16/05/2012,"-83,112.35 "
Care & Support,Older People & Physical Disability,HOBN,Third Party Payments,Homecare Expenditure,PROSPECTS FPWLD,16/05/2012,"-13,594.44 "
Care & Support,Older People & Physical Disability,HOBN,Third Party Payments,Homecare Expenditure,SEVACARE (UK) LIMITED,16/05/2012,"-30,246.79 "
Care & Support,Older People & Physical Disability,HOBN,Third Party Payments,Homecare Expenditure,WELLINGTON & DISTRICT COTTAGE HOSPITAL,16/05/2012,"-13,307.75 "
Care & Support,Older People & Physical Disability,HOBN,Third Party Payments,Homecare Expenditure,ARABELLA HEALTH STAFFING LTD T/A BNA,15/05/2012,-525.75 
Care & Support,Older People & Physical Disability,HOBN,Third Party Payments,Homecare Expenditure,BETHPHAGE,15/05/2012,"-12,596.72 "
Care & Support,Older People & Physical Disability,HOBN,Third Party Payments,Homecare Expenditure,SEVACARE (UK) LIMITED,22/05/2012," 28,458.03 "
Care & Support,Older People & Physical Disability,HOBN,Third Party Payments,Homecare Expenditure,PEACE OF MIND HOMECARE LIMITED,21/05/2012,"-38,944.90 "
Care & Support,Older People & Physical Disability,HOBN,Third Party Payments,Homecare Expenditure,CHOICES HOUSING ASSOCIATION LTD,16/05/2012,"-6,738.48 "
Care & Support,Older People & Physical Disability,HOBN,Third Party Payments,Homecare Expenditure,PHOENIX CARE PARTNERS,21/05/2012,"-43,692.47 "
Care & Support,Older People & Physical Disability,HOBN,Third Party Payments,Homecare Expenditure,HAVE A CARE,21/05/2012,"-1,277.80 "
Care & Support,Older People & Physical Disability,HOBN,Third Party Payments,Homecare Expenditure,PROSPECTS FPWLD,21/05/2012,"-13,594.44 "
Care & Support,Older People & Physical Disability,HOBN,Third Party Payments,Homecare Expenditure,TENDER CARE,21/05/2012,"-5,162.41 "
Care & Support,Older People & Physical Disability,HOBN,Third Party Payments,Homecare Expenditure,Home Instead,21/05/2012,"-7,555.76 "
Care & Support,Older People & Physical Disability,HOBN,Third Party Payments,Homecare Expenditure,HELPING HANDS HOMECARE,16/05/2012,"-1,978.48 "
Care & Support,Older People & Physical Disability,HOBN,Third Party Payments,Homecare Expenditure,Home Instead,16/05/2012,"-7,555.76 "
Care & Support,Older People & Physical Disability,HOBN,Third Party Payments,Homecare Expenditure,PEACE OF MIND HOMECARE LIMITED,16/05/2012,"-38,944.90 "
Care & Support,Older People & Physical Disability,HOBN,Third Party Payments,Homecare Expenditure,PRESTIGE NURSING LIMITED,16/05/2012,-729.28 
Care & Support,Older People & Physical Disability,HOBN,Third Party Payments,Homecare Expenditure,PHOENIX CARE PARTNERS,16/05/2012,"-43,692.47 "
Care & Support,Older People & Physical Disability,HOBN,Third Party Payments,Homecare Expenditure,PEACE OF MIND HOMECARE LIMITED,09/05/2012," 38,944.90 "
Care & Support,Older People & Physical Disability,HOBN,Third Party Payments,Homecare Expenditure,PHOENIX CARE PARTNERS,09/05/2012," 43,692.47 "
Care & Support,Older People & Physical Disability,HOBR,Third Party Payments,Homecare Expenditure,COVERAGE CARE SERVICES LTD,09/05/2012," 55,632.92 "
Care & Support,Older People & Physical Disability,HOBR,Third Party Payments,Homecare Expenditure,COVERAGE CARE SERVICES LTD,09/05/2012," 4,390.16 "
Care & Support,Older People & Physical Disability,HOBR,Third Party Payments,Homecare Expenditure,COVERAGE CARE SERVICES LTD,09/05/2012," 45,405.57 "
Care & Support,Older People & Physical Disability,HOBR,Third Party Payments,Homecare Expenditure,COVERAGE CARE SERVICES LTD,09/05/2012," 5,487.70 "
Care & Support,Older People & Physical Disability,HOBT,Third Party Payments,Daycare Expenditure,BRIDGE HOUSE CARE LTD,01/05/2012," 1,436.58 "
Care & Support,Older People & Physical Disability,HOBT,Third Party Payments,Daycare Expenditure,BRIDGE HOUSE CARE LTD,01/05/2012, 675.00 
Care & Support,Older People & Physical Disability,HOBT,Third Party Payments,Daycare Expenditure,BRIDGE HOUSE CARE LTD,01/05/2012, 606.45 
Care & Support,Older People & Physical Disability,HOCH,Third Party Payments,Residential Expenditure,COVERAGE CARE SERVICES LTD,11/05/2012," 5,369.91 "
Care & Support,Older People & Physical Disability,HOCJ,Third Party Payments,Residential Expenditure,COVERAGE CARE SERVICES LTD,11/05/2012," 5,369.91 "
Care & Support,Older People & Physical Disability,HOCM,Employees,Agency Supply Costs,MEDICONNECT RECRUITMENT LTD,21/05/2012," 1,222.18 "
Care & Support,Older People & Physical Disability,HOCM,Employees,Agency Supply Costs,MEDICONNECT RECRUITMENT LTD,21/05/2012," 1,109.86 "
Care & Support,Older People & Physical Disability,HOCM,Employees,Agency Supply Costs,MEDICONNECT RECRUITMENT LTD,18/05/2012," 1,112.46 "
Care & Support,Older People & Physical Disability,HOCM,Employees,Agency Supply Costs,MEDICONNECT RECRUITMENT LTD,18/05/2012, 967.28 
Care & Support,Older People & Physical Disability,HOCM,Employees,Agency Supply Costs,MEDICONNECT RECRUITMENT LTD,18/05/2012, 995.36 
Care & Support,Older People & Physical Disability,HOCM,Employees,Agency Supply Costs,MEDICONNECT RECRUITMENT LTD,18/05/2012," 1,116.62 "
Care & Support,Older People & Physical Disability,HOCM,Employees,Agency Supply Costs,MEDICONNECT RECRUITMENT LTD,18/05/2012," 1,100.77 "
Corporate Core,Human Resources,NHAC,Employees,Course Fees,CM INNOVATION LTD,28/05/2012, 719.00 
Corporate Core,Human Resources,NHAC,Employees,Course Fees,ACT ASSOCIATES LTD,28/05/2012, 855.00 
Corporate Core,Organisational Improvement,NOAT,Employees,Course Fees,Macbrac Training and Development,22/05/2012,-500.00 
Corporate Core,Organisational Improvement,NOAT,Employees,Course Fees,Macbrac Training and Development,22/05/2012," 2,250.00 "
Corporate Core,Organisational Improvement,NOAT,Employees,Course Fees,Macbrac Training and Development,22/05/2012, 500.00 
Corporate Core,Organisational Improvement,NOAT,Employees,Training Exp's (Facilitators),GEESE THEATRE COMPANY,16/05/2012," 3,000.00 "
Corporate Core,Organisational Improvement,NOAT,Employees,Training Exp's (Facilitators),W A USHER T/A THE PLAY DOCTORS LTD,16/05/2012, 684.50 
Corporate Core,Organisational Improvement,NOAT,Employees,Other Training,STAFFORDSHIRE UNIVERSITY,29/05/2012," 1,185.00 "
Corporate Core,Organisational Improvement,NOAT,Employees,Other Training,HI-IMPACT LIMITED,22/05/2012, 500.00 
"Customer Services, Leisure & Libraries",Arts & Culture,LCAB,Supplies & Services,Comp Software (Purch / Hire),Paritor Ltd,29/05/2012," 1,745.00 "
"Customer Services, Leisure & Libraries",Arts & Culture,LCAE,Supplies & Services,Artistes Fees,ARTISTES INTERNATIONAL MANAGEMENT,31/05/2012," 2,993.41 "
"Customer Services, Leisure & Libraries",Arts & Culture,LCAE,Supplies & Services,Artistes Fees,Prestige Productions,23/05/2012," 3,511.42 "
"Customer Services, Leisure & Libraries",Arts & Culture,LCAE,Supplies & Services,Artistes Fees,Bound And Gagged Limited,17/05/2012, 796.67 
"Customer Services, Leisure & Libraries",Arts & Culture,LCAE,Supplies & Services,Artistes Fees,Vamos Theatre Company,16/05/2012," 2,200.00 "
"Customer Services, Leisure & Libraries",Arts & Culture,LCAF,Supplies & Services,Artistes Fees,HANDSHAKE LTD,23/05/2012, 937.63 
"Customer Services, Leisure & Libraries",Arts & Culture,LCAM,Supplies & Services,Equipment - Hire,PANDA AV PRODUCTIONS LTD,04/05/2012," 1,830.25 "
"Customer Services, Leisure & Libraries",Arts & Culture,LCAN,Supplies & Services,Wet Resale Provision,MOLSON COORS BREWING COMPANY UK LTD,22/05/2012, 876.60 
"Customer Services, Leisure & Libraries",Communications & Marketing,MMAB,Employees,Professional Subs,JADU LIMITED,09/05/2012," 2,430.00 "
"Customer Services, Leisure & Libraries",Communications & Marketing,MMAB,Supplies & Services,Publications,NWN Media LTD,16/05/2012," 5,028.00 "
"Customer Services, Leisure & Libraries",Communications & Marketing,MMAD,Employees,Recruitment Advertising,THE MIDLAND NEWS ASSOCIATION LTD,29/05/2012," 1,385.55 "
"Customer Services, Leisure & Libraries",Communications & Marketing,MMAD,Employees,Recruitment Advertising,THE MIDLAND NEWS ASSOCIATION LTD,11/05/2012, 507.06 
"Customer Services, Leisure & Libraries",Communications & Marketing,MMAD,Employees,Recruitment Advertising,THE MIDLAND NEWS ASSOCIATION LTD,29/05/2012," 2,245.95 "
"Customer Services, Leisure & Libraries",Communications & Marketing,MMAD,Employees,Recruitment Advertising,TSL EDUCATION LIMITED,24/05/2012, 720.00 
"Customer Services, Leisure & Libraries",Communications & Marketing,MMAD,Supplies & Services,Advertising,THE MIDLAND NEWS ASSOCIATION LTD,23/05/2012, 635.04 
"Customer Services, Leisure & Libraries",Communications & Marketing,MMAD,Supplies & Services,Advertising,REED BUSINESS INFORMATION LTD,23/05/2012," 2,695.00 "
"Customer Services, Leisure & Libraries",Communications & Marketing,MMAD,Supplies & Services,Advertising,THE MIDLAND NEWS ASSOCIATION LTD,23/05/2012, 577.49 
"Customer Services, Leisure & Libraries",Communications & Marketing,MMAD,Supplies & Services,Advertising,THE MIDLAND NEWS ASSOCIATION LTD,02/05/2012, 507.06 
"Customer Services, Leisure & Libraries",Communications & Marketing,MMAD,Supplies & Services,Advertising,THE MIDLAND NEWS ASSOCIATION LTD,23/05/2012, 748.44 
"Customer Services, Leisure & Libraries",Communications & Marketing,MMAD,Supplies & Services,Advertising,THE MIDLAND NEWS ASSOCIATION LTD,28/05/2012, 748.44 
"Customer Services, Leisure & Libraries",Communications & Marketing,MMAD,Supplies & Services,Advertising,THE MIDLAND NEWS ASSOCIATION LTD,23/05/2012, 636.66 
"Customer Services, Leisure & Libraries",Communications & Marketing,MMAD,Supplies & Services,Advertising,THE MIDLAND NEWS ASSOCIATION LTD,29/05/2012, 510.90 
"Customer Services, Leisure & Libraries",Communications & Marketing,MMAD,Supplies & Services,Advertising,THE MIDLAND NEWS ASSOCIATION LTD,02/05/2012, 577.49 
"Customer Services, Leisure & Libraries",Communications & Marketing,MMAD,Supplies & Services,Advertising,UK Media Group Ltd,22/05/2012," 2,000.00 "
"Customer Services, Leisure & Libraries",Leisure Facilities & Services,GTAB,Premises-Related Expenditure,Minor Alterations,Paul Cook Building Contractor,18/05/2012," 1,230.00 "
"Customer Services, Leisure & Libraries",Leisure Facilities & Services,GTAB,Premises-Related Expenditure,Minor Alterations,Paul Cook Building Contractor,18/05/2012," 2,337.00 "
"Customer Services, Leisure & Libraries",Leisure Facilities & Services,GTAB,Premises-Related Expenditure,Minor Alterations,Paul Cook Building Contractor,18/05/2012," 1,270.00 "
"Customer Services, Leisure & Libraries",Leisure Facilities & Services,GTAB,Premises-Related Expenditure,Minor Alterations,Paul Cook Building Contractor,18/05/2012," 2,487.00 "
"Customer Services, Leisure & Libraries",Leisure Facilities & Services,GTAB,Premises-Related Expenditure,R&M WC Planned,NOBRIDGE LTD,01/05/2012," 26,620.00 "
"Customer Services, Leisure & Libraries",Leisure Facilities & Services,GTAB,Premises-Related Expenditure,R&M WC Contingency,AER CYMRU CYF,23/05/2012, 759.40 
"Customer Services, Leisure & Libraries",Leisure Facilities & Services,GTAB,Premises-Related Expenditure,R&M WC Contingency,Paul Cook Building Contractor,17/05/2012," 1,600.00 "
"Customer Services, Leisure & Libraries",Leisure Facilities & Services,GTAB,Premises-Related Expenditure,R&M WC Contingency,Paul Cook Building Contractor,17/05/2012," 1,360.00 "
"Customer Services, Leisure & Libraries",Leisure Facilities & Services,GTAB,Premises-Related Expenditure,R&M -Building Other,IDRIS CONTRACT FLOORING LTD,17/05/2012," 6,790.80 "
"Customer Services, Leisure & Libraries",Leisure Facilities & Services,GTAB,Premises-Related Expenditure,R&M -Building Other,ENVIROTECK,09/05/2012, 875.00 
"Customer Services, Leisure & Libraries",Leisure Facilities & Services,GTAB,Premises-Related Expenditure,Non Domestic Rates,CYNGOR GWYNEDD COUNCIL,25/05/2012," 1,559.00 "
"Customer Services, Leisure & Libraries",Leisure Facilities & Services,GTAB,Premises-Related Expenditure,Clean Mats & Toilet Requisites,OCS GROUP UK LIMITED T/A CANNON,17/05/2012, 602.76 
"Customer Services, Leisure & Libraries",Leisure Facilities & Services,GTAB,Supplies & Services,Equipment - Purchase,COTSWOLD OUTDOOR LTD,07/05/2012, 595.00 
"Customer Services, Leisure & Libraries",Leisure Facilities & Services,GTAB,Supplies & Services,Provisions,BSF TRADING AS 3663,23/05/2012, 520.81 
"Customer Services, Leisure & Libraries",Leisure Facilities & Services,GTAB,Supplies & Services,Provisions,WOODWARD FOODSERVICE LTD,10/05/2012, 592.85 
"Customer Services, Leisure & Libraries",Leisure Facilities & Services,GTAB,Supplies & Services,Provisions,WOODWARD FOODSERVICE LTD,10/05/2012, 528.62 
"Customer Services, Leisure & Libraries",Leisure Facilities & Services,GTAB,Supplies & Services,Provisions,WOODWARD FOODSERVICE LTD,24/05/2012, 576.30 
"Customer Services, Leisure & Libraries",Leisure Facilities & Services,GTAB,Supplies & Services,Provisions,WOODWARD FOODSERVICE LTD,07/05/2012, 592.37 
"Customer Services, Leisure & Libraries",Leisure Facilities & Services,GTAB,Supplies & Services,Provisions,BSF TRADING AS 3663,10/05/2012, 510.56 
"Customer Services, Leisure & Libraries",Leisure Facilities & Services,GTAB,Supplies & Services,Instructors Fees,BACH VENTURES LTD,23/05/2012, 550.00 
"Customer Services, Leisure & Libraries",Leisure Facilities & Services,GTAB,Supplies & Services,Instructors Fees,CHRIS HUGHES MULTI ACTIVITY SERVICES LTD,14/05/2012, 532.80 
"Customer Services, Leisure & Libraries",Leisure Facilities & Services,LEAC,Premises-Related Expenditure,Electricity,West Mercia Energy (WME),16/05/2012, 569.08 
"Customer Services, Leisure & Libraries",Leisure Facilities & Services,LEAC,Premises-Related Expenditure,Gas,BRITISH GAS BUSINESS,17/05/2012," 2,100.27 "
"Customer Services, Leisure & Libraries",Leisure Facilities & Services,LEAC,Premises-Related Expenditure,Gas,BRITISH GAS BUSINESS,17/05/2012, 839.42 
"Customer Services, Leisure & Libraries",Leisure Facilities & Services,LEAC,Premises-Related Expenditure,Gas,BRITISH GAS BUSINESS,17/05/2012," 1,485.53 "
"Customer Services, Leisure & Libraries",Leisure Facilities & Services,LEAC,Premises-Related Expenditure,Water Rates,SEVERN TRENT WATER LTD,17/05/2012, 510.83 
"Customer Services, Leisure & Libraries",Leisure Facilities & Services,LEAD,Premises-Related Expenditure,Swimming Pool Chemicals,BRENNTAG UK LIMITED,17/05/2012, 610.00 
"Customer Services, Leisure & Libraries",Leisure Facilities & Services,LEAD,Premises-Related Expenditure,Swimming Pool Chemicals,BRENNTAG UK LIMITED,28/05/2012, 610.00 
"Customer Services, Leisure & Libraries",Leisure Facilities & Services,LEAD,Supplies & Services,Furniture - Purchase,TELFORD WINDOW BLINDS LTD,10/05/2012," 2,500.00 "
"Customer Services, Leisure & Libraries",Leisure Facilities & Services,LEAF,Premises-Related Expenditure,R&M - Mechanical,TECHNOGYM UK LTD,28/05/2012," 5,060.95 "
"Customer Services, Leisure & Libraries",Leisure Facilities & Services,LECA,Premises-Related Expenditure,Fuel Oil,MIDLANDS WOOD FUEL SUPPLY LTD,14/05/2012," 3,421.22 "
"Customer Services, Leisure & Libraries",Leisure Facilities & Services,LECA,Premises-Related Expenditure,Water Rates,SEVERN TRENT WATER LTD,14/05/2012," 3,750.24 "
"Customer Services, Leisure & Libraries",Leisure Facilities & Services,LECE,Premises-Related Expenditure,R&M - Mechanical,TELFORD WINDOW BLINDS LTD,23/05/2012," 1,580.00 "
"Customer Services, Leisure & Libraries",Leisure Facilities & Services,LECK,Supplies & Services,Service Contracts,FIRST POINT TENNIS COACHING LTD,18/05/2012," 5,679.76 "
"Customer Services, Leisure & Libraries",Leisure Facilities & Services,LEDH,Supplies & Services,Equipment - Purchase,CLARITY RETAIL SYSTEMS LTD,23/05/2012," 5,184.22 "
"Customer Services, Leisure & Libraries",Leisure Facilities & Services,LEDJ,Premises-Related Expenditure,Electricity,WEST MERCIA SUPPLIES Catalogue Supplies (None Utility),01/05/2012,-834.95 
"Customer Services, Leisure & Libraries",Leisure Facilities & Services,LEDJ,Premises-Related Expenditure,Electricity,West Mercia Energy (WME),30/05/2012, 817.12 
"Customer Services, Leisure & Libraries",Leisure Facilities & Services,LEDJ,Premises-Related Expenditure,Electricity,West Mercia Energy (WME),30/05/2012, 633.45 
"Customer Services, Leisure & Libraries",Leisure Facilities & Services,LEDJ,Premises-Related Expenditure,Electricity,WEST MERCIA SUPPLIES Catalogue Supplies (None Utility),29/05/2012, 817.12 
"Customer Services, Leisure & Libraries",Leisure Facilities & Services,LEHG,Premises-Related Expenditure,Water Rates,SEVERN TRENT WATER LTD,23/05/2012," 1,633.99 "
"Customer Services, Leisure & Libraries",Leisure Facilities & Services,LEHG,Supplies & Services,Equipment - Hire,OAKLEYS LTD,28/05/2012, 525.75 
"Customer Services, Leisure & Libraries",Leisure Facilities & Services,LEHM,Supplies & Services,Other Materials,MALDAN LTD T/A COMPLETE WEED CONTROL (MIDLANDS CENTRAL),30/05/2012," 1,690.00 "
"Customer Services, Leisure & Libraries",Leisure Facilities & Services,LEIP,Supplies & Services,Payment Of Income Collected,PEEWEES ICE HOCKEY CLUB,25/05/2012," 2,547.00 "
"Customer Services, Leisure & Libraries",Leisure Facilities & Services,LEIR,Supplies & Services,Equipment - Hire,NOICEONE LTD,15/05/2012," 6,500.00 "
"Customer Services, Leisure & Libraries",Leisure Facilities & Services,LEIR,Supplies & Services,Equipment - Hire,V LOCKER UK LIMITED,24/05/2012, 607.25 
"Customer Services, Leisure & Libraries",Leisure Facilities & Services,LENP,Premises-Related Expenditure,Water Rates,SEVERN TRENT WATER LTD,25/05/2012," 2,996.70 "
"Customer Services, Leisure & Libraries",Leisure Facilities & Services,LENP,Premises-Related Expenditure,Clean Mats & Toilet Requisites,PRINCIPAL HYGIENE SYSTEMS,09/05/2012,"-4,063.07 "
"Customer Services, Leisure & Libraries",Leisure Facilities & Services,LEWP,Premises-Related Expenditure,Gas,West Mercia Energy (WME),30/05/2012, 551.49 
"Customer Services, Leisure & Libraries",Leisure Facilities & Services,LEWP,Premises-Related Expenditure,Water Rates,SEVERN TRENT WATER LTD,31/05/2012, 637.51 
"Customer Services, Leisure & Libraries",Leisure Facilities & Services,LEWP,Premises-Related Expenditure,Water Rates,SEVERN TRENT WATER LTD,31/05/2012," 2,394.20 "
"Customer Services, Leisure & Libraries",Leisure Facilities & Services,LEWP,Premises-Related Expenditure,Water Rates,SEVERN TRENT WATER LTD,31/05/2012, 898.10 
"Customer Services, Leisure & Libraries",Leisure Facilities & Services,LEWP,Premises-Related Expenditure,Clean Mats & Toilet Requisites,PRINCIPAL HYGIENE SYSTEMS,02/05/2012,"-5,550.50 "
"Customer Services, Leisure & Libraries",Leisure Facilities & Services,LEWP,Premises-Related Expenditure,Swimming Pool Chemicals,BRENNTAG UK LIMITED,02/05/2012, 637.40 
"Customer Services, Leisure & Libraries",Leisure Facilities & Services,LEWP,Supplies & Services,Equipment - Purchase,SIGNS EXPRESS (TELFORD),31/05/2012," 2,320.00 "
"Customer Services, Leisure & Libraries",Library Services,LBTE,Premises-Related Expenditure,Gas,WEST MERCIA SUPPLIES Catalogue Supplies (None Utility),01/05/2012, 677.14 
"Customer Services, Leisure & Libraries",Library Services,LBTE,Premises-Related Expenditure,Gas,West Mercia Energy (WME),08/05/2012, 677.14 
"Customer Services, Leisure & Libraries",Library Services,LLAA,Supplies & Services,Libraries Book Fund,W F HOWES LTD,23/05/2012, 508.00 
"Customer Services, Leisure & Libraries",Library Services,LLAA,Supplies & Services,Libraries Book Fund,PROQUEST INFORMATION AND LEARNING LTD,01/05/2012," 1,815.00 "
"Customer Services, Leisure & Libraries",Library Services,LLAA,Supplies & Services,Libraries Book Fund,BERTRAMS LIBRARY SERVICES,11/05/2012, 857.35 
"Customer Services, Leisure & Libraries",Library Services,LLAA,Supplies & Services,Libraries Book Fund,BERTRAMS LIBRARY SERVICES,11/05/2012, 610.21 
"Customer Services, Leisure & Libraries",Library Services,LLAA,Supplies & Services,Libraries Book Fund,AUDIOGO LIMITED,02/05/2012, 601.80 
"Customer Services, Leisure & Libraries",Revenues & Benefits,LRTA,Supplies & Services,Postages,ROYAL MAIL GROUP LTD,31/05/2012," 1,677.96 "
"Customer Services, Leisure & Libraries",Revenues & Benefits,LRTA,Supplies & Services,Postages,ROYAL MAIL GROUP LTD,09/05/2012," 1,531.41 "
"Customer Services, Leisure & Libraries",Revenues & Benefits,LRTA,Supplies & Services,Postages,ROYAL MAIL GROUP LTD,28/05/2012, 600.00 
"Customer Services, Leisure & Libraries",Revenues & Benefits,LRTA,Supplies & Services,Postages,ROYAL MAIL GROUP LTD,28/05/2012," 1,845.23 "
"Customer Services, Leisure & Libraries",Revenues & Benefits,LRTA,Supplies & Services,Postages,ROYAL MAIL GROUP LTD,22/05/2012," 2,913.88 "
"Customer Services, Leisure & Libraries",Revenues & Benefits,LRTA,Supplies & Services,Postages,ROYAL MAIL GROUP LTD,22/05/2012," 1,981.88 "
"Customer Services, Leisure & Libraries",Revenues & Benefits,LRTA,Supplies & Services,Postages,ROYAL MAIL GROUP LTD,02/05/2012," 4,957.87 "
"Customer Services, Leisure & Libraries",Revenues & Benefits,LRTB,Supplies & Services,Other Services,EXPERIAN LTD,09/05/2012," 1,137.50 "
"Customer Services, Leisure & Libraries",Revenues & Benefits,LRTB,Supplies & Services,Other Services,EXPERIAN LTD,09/05/2012," 3,412.50 "
"Customer Services, Leisure & Libraries",Revenues & Benefits,LRTC,Supplies & Services,Printing - Other,NORTHGATE INFORMATION SOLUTIONS UK LTD,09/05/2012, 993.60 
"Customer Services, Leisure & Libraries",Revenues & Benefits,LRTC,Supplies & Services,Printing - Other,NORTHGATE INFORMATION SOLUTIONS UK LTD,22/05/2012," 1,005.25 "
"Customer Services, Leisure & Libraries",Superintendent Registrar,LSAB,Premises-Related Expenditure,Grounds Maintenance - Cemeteries,P & W MAINTENANCE CONTRACTING LTD,11/05/2012," 2,328.80 "
"Customer Services, Leisure & Libraries",Superintendent Registrar,LSAB,Premises-Related Expenditure,Grounds Maintenance - Cemeteries,P & W MAINTENANCE CONTRACTING LTD,11/05/2012," 1,604.70 "
"Customer Services, Leisure & Libraries",Superintendent Registrar,LSAB,Supplies & Services,Equipment - Repair,GOWER CONSULTANTS LIMITED,22/05/2012, 848.27 
Economy & Skills,Enterprise & Employment,AEAP,Supplies & Services,Consultants Fees,SHROPSHIRE COUNCIL,17/05/2012," 19,460.00 "
Economy & Skills,Enterprise & Employment,AEAP,Supplies & Services,Consultants Fees,SHROPSHIRE COUNCIL,11/05/2012," 9,810.00 "
Economy & Skills,Enterprise & Employment,AEAP,Supplies & Services,Consultants Fees,E4 Environment,11/05/2012," 1,006.25 "
Economy & Skills,Enterprise & Employment,AEAR,Premises-Related Expenditure,Hire Of Rooms,MEETING POINT TRUST LTD,21/05/2012," 1,242.00 "
Economy & Skills,Enterprise & Employment,CEAB,Premises-Related Expenditure,Other,JOHN G RUSSELL (TRANSPORT) LTD,23/05/2012," 2,250.00 "
Economy & Skills,Enterprise & Employment,CEAB,Premises-Related Expenditure,Other,JOHN G RUSSELL (TRANSPORT) LTD,18/05/2012," 2,250.00 "
Economy & Skills,Enterprise & Employment,CEAB,Premises-Related Expenditure,Other,JOHN G RUSSELL (TRANSPORT) LTD,18/05/2012," 2,250.00 "
Economy & Skills,Enterprise & Employment,CEAB,Premises-Related Expenditure,Other,JOHN G RUSSELL (TRANSPORT) LTD,18/05/2012," 2,250.00 "
Economy & Skills,Lifelong Learning,AEAB,Supplies & Services,Research Surveys,Lynn Jones Research Ltd,17/05/2012," 3,791.67 "
Economy & Skills,Lifelong Learning,AEAD,Supplies & Services,Marketing & Publicity,Get Smart Distribution,11/05/2012," 1,755.00 "
Economy & Skills,Lifelong Learning,AEAJ,Supplies & Services,Marketing & Publicity,International Synergies,31/05/2012," 1,000.00 "
Economy & Skills,Lifelong Learning,ALAA,Third Party Payments,Childminders,CHILDCARE SOS,23/05/2012," 1,032.00 "
Economy & Skills,Lifelong Learning,ALAC,Supplies & Services,Mobile Phones,ORANGE PCS LTD,24/05/2012, 725.00 
Economy & Skills,Lifelong Learning,ALAF,Supplies & Services,Sub Contractors,RELATE SHROPSHIRE & HEREFORDSHIRE LTD,22/05/2012," 7,500.00 "
Environmental Services,Engineering Services,EHAM,Premises-Related Expenditure,Ad-hoc Maintenance,PRYSMIAN CABLES & SYSTEMS LTD,02/05/2012, 916.34 
Environmental Services,Engineering Services,EHAM,Premises-Related Expenditure,Ad-hoc Maintenance,PRYSMIAN CABLES & SYSTEMS LTD,02/05/2012," 1,629.10 "
Environmental Services,Engineering Services,EHAM,Premises-Related Expenditure,Ad-hoc Maintenance,PRYSMIAN CABLES & SYSTEMS LTD,02/05/2012," 1,381.95 "
Environmental Services,Engineering Services,EHAM,Premises-Related Expenditure,Ad-hoc Maintenance,PRYSMIAN CABLES & SYSTEMS LTD,03/05/2012," 1,075.89 "
Environmental Services,Engineering Services,EHAM,Premises-Related Expenditure,Ad-hoc Maintenance,PRYSMIAN CABLES & SYSTEMS LTD,03/05/2012," 1,795.47 "
Environmental Services,Engineering Services,EHAM,Premises-Related Expenditure,Ad-hoc Maintenance,PRYSMIAN CABLES & SYSTEMS LTD,03/05/2012," 1,679.58 "
Environmental Services,Engineering Services,EHAM,Premises-Related Expenditure,Ad-hoc Maintenance,PRYSMIAN CABLES & SYSTEMS LTD,03/05/2012, 887.26 
Environmental Services,Engineering Services,EHAM,Premises-Related Expenditure,Ad-hoc Maintenance,PRYSMIAN CABLES & SYSTEMS LTD,03/05/2012," 1,952.74 "
Environmental Services,Engineering Services,EHAN,Premises-Related Expenditure,Ad-hoc Maintenance,PRYSMIAN CABLES & SYSTEMS LTD,02/05/2012," 1,306.09 "
Environmental Services,Engineering Services,EHAN,Premises-Related Expenditure,Ad-hoc Maintenance,PRYSMIAN CABLES & SYSTEMS LTD,03/05/2012, 659.37 
Environmental Services,Engineering Services,EHAP,Premises-Related Expenditure,Ad-hoc Maintenance,PRYSMIAN CABLES & SYSTEMS LTD,02/05/2012, 521.59 
Environmental Services,Engineering Services,EHBC,Premises-Related Expenditure,Ad-hoc Maintenance,PRYSMIAN CABLES & SYSTEMS LTD,02/05/2012," 1,151.23 "
Environmental Services,Engineering Services,EHBC,Premises-Related Expenditure,Ad-hoc Maintenance,PRYSMIAN CABLES & SYSTEMS LTD,03/05/2012," 5,816.93 "
Environmental Services,Engineering Services,EHBC,Premises-Related Expenditure,Ad-hoc Maintenance,PRYSMIAN CABLES & SYSTEMS LTD,03/05/2012, 535.87 
Environmental Services,Engineering Services,EHBC,Premises-Related Expenditure,Ad-hoc Maintenance,PRYSMIAN CABLES & SYSTEMS LTD,03/05/2012," 5,395.19 "
Environmental Services,Engineering Services,EHBC,Supplies & Services,Highways Equipment,Power Data Associates Ltd,15/05/2012," 3,200.00 "
Environmental Services,Engineering Services,ESAB,Supplies & Services,Other Services,BIOGAS TECHNOLOGY LIMITED,08/05/2012," 2,656.69 "
Environmental Services,Engineering Services,ESAB,Supplies & Services,Other Services,M S & E M PATRICK LIMITED,11/05/2012," 1,175.88 "
Environmental Services,Engineering Services,ESAE,Supplies & Services,Other Expenses,Micro Drainage Limited,31/05/2012, 995.00 
Environmental Services,Engineering Services,ESAF,Supplies & Services,Other Expenses,A HAND SERVICES LTD,23/05/2012, 513.00 
Environmental Services,Engineering Services,WEAC,Capital Expenditure,Payments to Contractor,FITZGERALD CONTRACTORS LTD,03/05/2012," 3,984.30 "
Environmental Services,Engineering Services,WEAC,Capital Expenditure,Payments to Contractor,TRAFFIC & COMMERCIAL SIGNS LTD,08/05/2012," 3,788.91 "
Environmental Services,Engineering Services,WEAD,Capital Expenditure,Payments to Contractor,TELFORD & WREKIN SERVICES LTD,15/05/2012," 11,948.69 "
Environmental Services,Engineering Services,WEAF,Capital Expenditure,External Professional Fees,GORMAN MANAGEMENT SERVICES LTD,23/05/2012," 3,359.07 "
Environmental Services,Engineering Services,WEAF,Capital Expenditure,Payments to Contractor,TELFORD & WREKIN SERVICES LTD,15/05/2012," 10,122.48 "
Environmental Services,Engineering Services,WEAF,Capital Expenditure,Payments to Contractor,TELFORD & WREKIN SERVICES LTD,15/05/2012," 15,567.91 "
Environmental Services,Engineering Services,WEAG,Capital Expenditure,New construction conversion & renovation,ADROIT CONSTRUCTION SERVICES PLC,24/05/2012," 1,850.48 "
Environmental Services,Engineering Services,WEAG,Capital Expenditure,Payments to Contractor,MCPHILLIPS (WELLINGTON) LTD,24/05/2012," 38,184.84 "
Environmental Services,Engineering Services,WEAG,Capital Expenditure,Payments to Contractor,Forkers Ltd,11/05/2012," 34,874.64 "
Environmental Services,Engineering Services,WEAG,Capital Expenditure,Payments to Contractor,MCPHILLIPS (WELLINGTON) LTD,18/05/2012," 85,795.23 "
Environmental Services,Engineering Services,WEAH,Capital Expenditure,Payments to Contractor,Cole-Parmer UK,02/05/2012," 1,200.00 "
Environmental Services,Engineering Services,WEAH,Capital Expenditure,Payments to Contractor,Hygrade Idustrial Plastics Limited,11/05/2012," 1,400.00 "
Environmental Services,Engineering Services,WEAH,Capital Expenditure,Payments to Contractor,JACOBS ENGINEERING UK LIMITED,11/05/2012," 8,146.28 "
Environmental Services,Engineering Services,WEAH,Capital Expenditure,Payments to Contractor,MCPHILLIPS (WELLINGTON) LTD,29/05/2012," 12,687.53 "
Environmental Services,Engineering Services,WESA,Capital Expenditure,Payments to Contractor,MCPHILLIPS (WELLINGTON) LTD,11/05/2012," 7,851.99 "
Environmental Services,Environment & Open Space,ECAA,Supplies & Services,Bulk Refuse Contracts Purch,CRAEMER UK LTD,22/05/2012," 3,780.00 "
Environmental Services,Environment & Open Space,ECAF,Supplies & Services,Other Services,HILBRAE PETS HOTEL,04/05/2012," 2,047.37 "
Environmental Services,Environment & Open Space,ECAF,Supplies & Services,Other Services,HILBRAE PETS HOTEL,23/05/2012," 2,393.46 "
Environmental Services,Environment & Open Space,ECAH,Third Party Payments,Contractor Recharge,TELFORD & WREKIN SERVICES LTD,21/05/2012," 84,091.57 "
Environmental Services,Environment & Open Space,EEAB,Supplies & Services,Other Materials,British Wild Flower Plants,22/05/2012," 2,522.80 "
Environmental Services,Environment & Open Space,EEAB,Supplies & Services,Other Services,TELFORD & WREKIN SERVICES LTD,04/05/2012," 1,977.60 "
Environmental Services,Environment & Open Space,EEBE,Supplies & Services,Other Services,SITA UK,23/05/2012," 3,730.18 "
Environmental Services,Environment & Open Space,EEBR,Employees,Training Expenses,TMS CONSULTANCY,16/05/2012, 585.00 
Environmental Services,Environment & Open Space,EPAF,Premises-Related Expenditure,R&M - Mechanical,CHARLIES STORES LTD,11/05/2012," 3,268.00 "
Environmental Services,Environment & Open Space,EPAF,Premises-Related Expenditure,Electricity,West Mercia Energy (WME),30/05/2012," 2,882.02 "
Environmental Services,Environment & Open Space,EPAF,Supplies & Services,Other Materials,CANNON HYGIENE LTD,23/05/2012, 993.23 
Environmental Services,Environment & Open Space,EPAF,Supplies & Services,Other Materials,CANNON HYGIENE LTD,23/05/2012," 1,005.42 "
Environmental Services,Environment & Open Space,EPAF,Supplies & Services,Other Materials,BUSINESS WATCH GUARDING LIMITED,30/05/2012, 592.60 
Environmental Services,Environment & Open Space,EPAF,Supplies & Services,Other Materials,ENVIRONMENT AGENCY,28/05/2012," 1,026.00 "
Environmental Services,Environment & Open Space,EPAF,Supplies & Services,Other Materials,PORTAKABIN LTD,24/05/2012," 1,728.97 "
Environmental Services,Environment & Open Space,EPAF,Supplies & Services,Other Materials,PORTAKABIN LTD,25/05/2012,"-1,561.64 "
Environmental Services,Environment & Open Space,EPAF,Supplies & Services,Co-Co General,Historical Promotions,21/05/2012," 8,000.00 "
Environmental Services,Environment & Open Space,EPAF,Transport-Related Expenditure,Purchase Vehicles and Plant,CHARLIES STORES LTD,11/05/2012," 8,511.00 "
Environmental Services,Environment & Open Space,EPAM,Capital Financing Costs,Leased Equipment,Franke Coffee Systems UK Ltd,23/05/2012," 5,490.00 "
Environmental Services,Environment & Open Space,EPAM,Supplies & Services,Other Materials,SHREWSBURY & TELFORD CASH REGISTER CO,03/05/2012, 814.95 
Environmental Services,Environment & Open Space,EPAM,Supplies & Services,Provisions,CROWN CUP LIMITED,03/05/2012, 617.73 
Environmental Services,Environment & Open Space,EPAM,Supplies & Services,Provisions,BIKOLD,04/05/2012, 847.76 
Environmental Services,Environment & Open Space,EWAE,Supplies & Services,Other Materials,JACK MOODY LTD,16/05/2012," 7,623.00 "
Environmental Services,Environment & Open Space,EWAE,Supplies & Services,Highways Equipment,SITA UK,21/05/2012," 12,846.34 "
Environmental Services,Environment & Open Space,EWAE,Supplies & Services,Highways Equipment,SITA UK,01/05/2012," 17,479.95 "
Environmental Services,Environment & Open Space,EWAE,Supplies & Services,Green Waste,SITA UK,16/05/2012, 533.02 
Environmental Services,Environment & Open Space,EWAE,Supplies & Services,Green Waste,JACK MOODY LTD,16/05/2012, 976.32 
Environmental Services,Environment & Open Space,EWAE,Supplies & Services,Other Services,SITA UK,21/05/2012," 133,445.52 "
Environmental Services,Environment & Open Space,EWAE,Supplies & Services,Other Services,SITA UK,04/05/2012," 50,849.07 "
Environmental Services,Environment & Open Space,EWAE,Supplies & Services,Service Contracts,SRCL LTD,08/05/2012," 1,060.00 "
Environmental Services,Environment & Open Space,EWAE,Supplies & Services,Service Contracts,AQUA FORCE SPECIAL WASTE LTD,22/05/2012," 1,780.00 "
Environmental Services,Environment & Open Space,EWAE,Supplies & Services,Service Contracts,SRCL LTD,22/05/2012, 573.80 
Environmental Services,Environment & Open Space,EWAE,Supplies & Services,Service Contracts,SRCL LTD,28/05/2012, 623.49 
Environmental Services,Environment & Open Space,EWAE,Supplies & Services,Service Contracts,SITA UK,21/05/2012," 133,445.51 "
Environmental Services,Environment & Open Space,EWAE,Supplies & Services,Service Contracts,AQUA FORCE SPECIAL WASTE LTD,08/05/2012," 1,615.00 "
Environmental Services,Environment & Open Space,EWAE,Supplies & Services,Service Contracts,AQUA FORCE SPECIAL WASTE LTD,28/05/2012," 1,120.00 "
Environmental Services,Environment & Open Space,EWAE,Supplies & Services,Service Contracts,SITA UK,16/05/2012, 605.79 
Environmental Services,Environment & Open Space,EWAE,Supplies & Services,Plastic Reycling,TELFORD & WREKIN SERVICES LTD,21/05/2012," 12,979.68 "
Environmental Services,Environment & Open Space,EWAE,Supplies & Services,Landfill Tax,SITA UK,04/05/2012," 209,369.57 "
Environmental Services,Environment & Open Space,EWAE,Transport-Related Expenditure,Tyres - Routine,CREDENTIALS ENVIRONMENTAL LTD,22/05/2012, 541.80 
Environmental Services,Environment & Open Space,WEAJ,Capital Expenditure,Payments to Contractor,DINGLE NURSERIES,03/05/2012," 1,131.40 "
Environmental Services,Environment & Open Space,WEPA,Capital Expenditure,Payments to Contractor,NEXUS HERITAGE,28/05/2012, 500.00 
Environmental Services,Environment & Open Space,WEPA,Capital Expenditure,Payments to Contractor,FITZGERALD CONTRACTORS LTD,04/05/2012," 59,990.52 "
Environmental Services,Highways & Transport,EHAD,Supplies & Services,Consultants Fees,JACOBS ENGINEERING UK LIMITED,18/05/2012," 22,483.25 "
Environmental Services,Highways & Transport,EHAD,Supplies & Services,Consultants Fees,JACOBS ENGINEERING UK LIMITED,18/05/2012," 35,000.00 "
Environmental Services,Highways & Transport,EHBE,Supplies & Services,Other Services,SECURITY PLUS LIMITED,03/05/2012, 771.48 
Environmental Services,Highways & Transport,EHBE,Transport-Related Expenditure,Overheads,METRIC GROUP LTD,23/05/2012, 578.69 
Environmental Services,Highways & Transport,EHBM,Third Party Payments,Private Contractors,TELFORD & WREKIN SERVICES LTD,21/05/2012," 741,676.51 "
Environmental Services,Highways & Transport,EHBM,Third Party Payments,Private Contractors,TELFORD & WREKIN SERVICES LTD,21/05/2012," 135,463.17 "
Environmental Services,Highways & Transport,EHBS,Supplies & Services,Other Expenses,BT PAYPHONES,24/05/2012,-607.27 
Environmental Services,Highways & Transport,EHBS,Supplies & Services,Other Expenses,BT PAYPHONES,24/05/2012," 1,224.64 "
Environmental Services,Highways & Transport,ETAA,Supplies & Services,Registration / Licence Fees,TRAPEZE,23/05/2012," 7,235.74 "
Environmental Services,Highways & Transport,ETAA,Supplies & Services,Registration / Licence Fees,TRAPEZE,23/05/2012," 8,030.07 "
Environmental Services,Highways & Transport,ETAA,Supplies & Services,Concessionary Travel,ARRIVA MIDLANDS NORTH LIMITED,22/05/2012," 137,154.27 "
Environmental Services,Highways & Transport,ETAA,Supplies & Services,Concessionary Travel,ESP Systex,21/05/2012," 4,642.49 "
Environmental Services,Highways & Transport,ETAA,Supplies & Services,Public Transport Subsidy,CENTRAL TAXIS LIMITED TELFORD,23/05/2012," 2,010.50 "
Environmental Services,Highways & Transport,ETAB,Premises-Related Expenditure,R&M -Buildings DLO Charge,KRM CONTRACTORS LTD,23/05/2012, 507.00 
Environmental Services,Highways & Transport,ETAB,Premises-Related Expenditure,Contract Cleaning,TELFORD & WREKIN SERVICES LTD,10/05/2012," 1,628.71 "
Environmental Services,Highways & Transport,ETAC,Supplies & Services,Registration / Licence Fees,TRAPEZE,23/05/2012," 10,969.36 "
Environmental Services,Highways & Transport,ETAE,Transport-Related Expenditure,Taxi Costs,CENTRAL TAXIS LTD SHREWSBURY,01/05/2012, 516.00 
Environmental Services,Highways & Transport,ETAE,Transport-Related Expenditure,Taxi Costs,CENTRAL TAXIS LTD SHREWSBURY,01/05/2012, 921.06 
Environmental Services,Highways & Transport,ETAE,Transport-Related Expenditure,Taxi Costs,CENTRAL TAXIS LTD SHREWSBURY,01/05/2012," 1,517.25 "
Environmental Services,Highways & Transport,ETAE,Transport-Related Expenditure,Taxi Costs,COMMUNITY MOBILITY TRANSPORT,17/05/2012," 5,951.55 "
Environmental Services,Highways & Transport,ETAE,Transport-Related Expenditure,Taxi Costs,COUNTY CARS,01/05/2012," 2,208.80 "
Environmental Services,Highways & Transport,ETAE,Transport-Related Expenditure,Taxi Costs,CENTRAL TAXIS LTD SHREWSBURY,01/05/2012, 668.10 
Environmental Services,Highways & Transport,ETAE,Transport-Related Expenditure,Taxi Costs,DIAMOND CARS (TELFORD) LTD,16/05/2012, 693.60 
Environmental Services,Highways & Transport,ETAE,Transport-Related Expenditure,Taxi Costs,DIAMOND CARS (TELFORD) LTD,16/05/2012, 785.40 
Environmental Services,Highways & Transport,ETAE,Transport-Related Expenditure,Taxi Costs,DIAMOND CARS (TELFORD) LTD,21/05/2012," 1,192.00 "
Environmental Services,Highways & Transport,ETAE,Transport-Related Expenditure,Taxi Costs,COUNTY CARS,28/05/2012, 602.40 
Environmental Services,Highways & Transport,ETAE,Transport-Related Expenditure,Taxi Costs,CENTRAL TAXIS LTD SHREWSBURY,01/05/2012, 546.00 
Environmental Services,Highways & Transport,ETAE,Transport-Related Expenditure,Taxi Costs,NSL Limited t/a Patient First Group,28/05/2012, 900.00 
Environmental Services,Highways & Transport,ETAE,Transport-Related Expenditure,Taxi Costs,SHROPSHIRE COUNCIL,02/05/2012," 2,215.50 "
Environmental Services,Highways & Transport,ETAE,Transport-Related Expenditure,Taxi Costs,DIAMOND CARS (TELFORD) LTD,21/05/2012, 852.72 
Environmental Services,Highways & Transport,ETAE,Transport-Related Expenditure,Taxi Costs,ULTIMATE TAXIS LTD,21/05/2012, 711.00 
Environmental Services,Highways & Transport,ETAE,Transport-Related Expenditure,Taxi Costs,CENTRAL TAXIS LTD SHREWSBURY,29/05/2012, 561.00 
Environmental Services,Highways & Transport,ETAE,Transport-Related Expenditure,Taxi Costs,COUNTY CARS,28/05/2012, 501.60 
Environmental Services,Highways & Transport,ETAE,Transport-Related Expenditure,Taxi Costs,DIAMOND CARS (TELFORD) LTD,21/05/2012, 507.54 
Environmental Services,Highways & Transport,ETAE,Transport-Related Expenditure,Taxi Costs,DIAMOND CARS (TELFORD) LTD,21/05/2012," 1,099.56 "
Environmental Services,Highways & Transport,ETAE,Transport-Related Expenditure,Taxi Costs,CENTRAL TAXIS LTD SHREWSBURY,01/05/2012, 518.40 
Environmental Services,Highways & Transport,ETAE,Transport-Related Expenditure,Taxi Costs,DIAMOND CARS (TELFORD) LTD,16/05/2012," 1,659.00 "
Environmental Services,Highways & Transport,ETAE,Transport-Related Expenditure,Taxi Costs,DIAMOND CARS (TELFORD) LTD,16/05/2012, 848.10 
Environmental Services,Highways & Transport,ETAE,Transport-Related Expenditure,Taxi Costs,DIAMOND CARS (TELFORD) LTD,16/05/2012, 673.20 
Environmental Services,Highways & Transport,ETAE,Transport-Related Expenditure,Contract Hire,AT BROWN (COACHES) LTD,22/05/2012," 1,059.85 "
Environmental Services,Highways & Transport,ETAE,Transport-Related Expenditure,Contract Hire,AT BROWN (COACHES) LTD,22/05/2012," 1,059.85 "
Environmental Services,Highways & Transport,ETAE,Transport-Related Expenditure,Contract Hire,ARRIVA MIDLANDS NORTH LIMITED,31/05/2012, 560.00 
Environmental Services,Highways & Transport,ETAE,Transport-Related Expenditure,Contract Hire - Mini Bus,EXPRESS TRAVEL,21/05/2012, 660.00 
Environmental Services,Highways & Transport,ETAE,Transport-Related Expenditure,Contract Hire - Mini Bus,AT BROWN (COACHES) LTD,22/05/2012," 1,007.15 "
Environmental Services,Highways & Transport,ETAE,Transport-Related Expenditure,Contract Hire - Mini Bus,AT BROWN (COACHES) LTD,22/05/2012, 805.72 
Environmental Services,Highways & Transport,ETAE,Transport-Related Expenditure,Contract Hire - Mini Bus,AT BROWN (COACHES) LTD,22/05/2012, 781.16 
Environmental Services,Highways & Transport,ETAE,Transport-Related Expenditure,Contract Hire - Mini Bus,AT BROWN (COACHES) LTD,22/05/2012, 781.16 
Environmental Services,Highways & Transport,ETAE,Transport-Related Expenditure,Contract Hire - Mini Bus,AT BROWN (COACHES) LTD,22/05/2012, 520.00 
Environmental Services,Highways & Transport,ETAE,Transport-Related Expenditure,Contract Hire - Mini Bus,AT BROWN (COACHES) LTD,22/05/2012," 1,285.48 "
Environmental Services,Highways & Transport,ETAE,Transport-Related Expenditure,Contract Hire - Mini Bus,AT BROWN (COACHES) LTD,22/05/2012, 925.52 
Environmental Services,Highways & Transport,ETAE,Transport-Related Expenditure,Contract Hire - Mini Bus,AT BROWN (COACHES) LTD,22/05/2012, 781.16 
Environmental Services,Highways & Transport,ETAE,Transport-Related Expenditure,Contract Hire - Mini Bus,AT BROWN (COACHES) LTD,22/05/2012," 1,032.00 "
Environmental Services,Highways & Transport,ETAE,Transport-Related Expenditure,Contract Hire - Mini Bus,AT BROWN (COACHES) LTD,22/05/2012, 847.88 
Environmental Services,Highways & Transport,ETAE,Transport-Related Expenditure,Contract Hire - Mini Bus,AT BROWN (COACHES) LTD,22/05/2012, 805.72 
Environmental Services,Highways & Transport,ETAE,Transport-Related Expenditure,Contract Hire - Mini Bus,AT BROWN (COACHES) LTD,22/05/2012, 520.00 
Environmental Services,Highways & Transport,ETAE,Transport-Related Expenditure,Contract Hire - Mini Bus,AT BROWN (COACHES) LTD,22/05/2012," 1,285.48 "
Environmental Services,Highways & Transport,ETAE,Transport-Related Expenditure,Contract Hire - Mini Bus,AT BROWN (COACHES) LTD,22/05/2012, 925.52 
Environmental Services,Highways & Transport,ETAE,Transport-Related Expenditure,Contract Hire - Mini Bus,AT BROWN (COACHES) LTD,22/05/2012, 781.16 
Environmental Services,Highways & Transport,ETAE,Transport-Related Expenditure,Contract Hire - Mini Bus,AT BROWN (COACHES) LTD,22/05/2012," 1,032.00 "
Environmental Services,Highways & Transport,ETAE,Transport-Related Expenditure,Contract Hire - Mini Bus,AT BROWN (COACHES) LTD,22/05/2012, 847.88 
Environmental Services,Highways & Transport,ETAE,Transport-Related Expenditure,Contract Hire - Mini Bus,AT BROWN (COACHES) LTD,22/05/2012, 805.72 
Environmental Services,Highways & Transport,ETAE,Transport-Related Expenditure,Contract Hire - Mini Bus,AT BROWN (COACHES) LTD,22/05/2012, 805.72 
Environmental Services,Highways & Transport,ETAE,Transport-Related Expenditure,Contract Hire - Mini Bus,AT BROWN (COACHES) LTD,22/05/2012, 781.16 
Environmental Services,Highways & Transport,ETAE,Transport-Related Expenditure,Contract Hire - Mini Bus,AT BROWN (COACHES) LTD,22/05/2012, 781.16 
Environmental Services,Highways & Transport,ETAE,Transport-Related Expenditure,Contract Hire - Mini Bus,ULTIMATE TAXIS LTD,21/05/2012," 1,320.00 "
Environmental Services,Highways & Transport,ETAE,Transport-Related Expenditure,Contract Hire - Mini Bus,AT BROWN (COACHES) LTD,22/05/2012, 512.33 
Environmental Services,Highways & Transport,ETAE,Transport-Related Expenditure,Contract Hire - Mini Bus,AT BROWN (COACHES) LTD,22/05/2012, 512.33 
Environmental Services,Highways & Transport,ETAE,Transport-Related Expenditure,Contract Hire - Mini Bus,AT BROWN (COACHES) LTD,22/05/2012, 976.45 
Environmental Services,Highways & Transport,ETAE,Transport-Related Expenditure,Contract Hire - Mini Bus,AT BROWN (COACHES) LTD,22/05/2012, 650.00 
Environmental Services,Highways & Transport,ETAE,Transport-Related Expenditure,Contract Hire - Mini Bus,AT BROWN (COACHES) LTD,22/05/2012," 1,606.85 "
Environmental Services,Highways & Transport,ETAE,Transport-Related Expenditure,Contract Hire - Mini Bus,AT BROWN (COACHES) LTD,22/05/2012," 1,156.90 "
Environmental Services,Highways & Transport,ETAE,Transport-Related Expenditure,Contract Hire - Mini Bus,AT BROWN (COACHES) LTD,22/05/2012, 976.45 
Environmental Services,Highways & Transport,ETAE,Transport-Related Expenditure,Contract Hire - Mini Bus,AT BROWN (COACHES) LTD,22/05/2012," 1,290.00 "
Environmental Services,Highways & Transport,ETAE,Transport-Related Expenditure,Contract Hire - Mini Bus,DIAMOND CARS (TELFORD) LTD,21/05/2012," 1,110.78 "
Environmental Services,Highways & Transport,ETAE,Transport-Related Expenditure,Contract Hire - Mini Bus,DIAMOND CARS (TELFORD) LTD,21/05/2012, 748.00 
Environmental Services,Highways & Transport,ETAE,Transport-Related Expenditure,Contract Hire - Mini Bus,AT BROWN (COACHES) LTD,22/05/2012," 1,007.15 "
Environmental Services,Highways & Transport,ETAE,Transport-Related Expenditure,Contract Hire - Mini Bus,AT BROWN (COACHES) LTD,22/05/2012, 976.45 
Environmental Services,Highways & Transport,ETAE,Transport-Related Expenditure,Contract Hire - Mini Bus,AT BROWN (COACHES) LTD,22/05/2012, 976.45 
Environmental Services,Highways & Transport,ETAE,Transport-Related Expenditure,Contract Hire - Mini Bus,AT BROWN (COACHES) LTD,22/05/2012, 650.00 
Environmental Services,Highways & Transport,ETAE,Transport-Related Expenditure,Contract Hire - Mini Bus,AT BROWN (COACHES) LTD,22/05/2012," 1,606.85 "
Environmental Services,Highways & Transport,ETAE,Transport-Related Expenditure,Contract Hire - Mini Bus,AT BROWN (COACHES) LTD,22/05/2012," 1,156.90 "
Environmental Services,Highways & Transport,ETAE,Transport-Related Expenditure,Contract Hire - Mini Bus,AT BROWN (COACHES) LTD,22/05/2012, 976.45 
Environmental Services,Highways & Transport,ETAE,Transport-Related Expenditure,Contract Hire - Mini Bus,AT BROWN (COACHES) LTD,22/05/2012," 1,290.00 "
Environmental Services,Highways & Transport,ETAE,Transport-Related Expenditure,Contract Hire - Mini Bus,AT BROWN (COACHES) LTD,22/05/2012," 1,007.15 "
Environmental Services,Highways & Transport,ETAE,Transport-Related Expenditure,Contract Hire - Mini Bus,SHAWS TRAVEL LTD,29/05/2012, 979.00 
Environmental Services,Highways & Transport,ETAE,Transport-Related Expenditure,Contract Hire - Mini Bus,AT BROWN (COACHES) LTD,22/05/2012, 512.33 
Environmental Services,Highways & Transport,ETAE,Transport-Related Expenditure,Contract Hire - Mini Bus,EXPRESS DRIVEN,08/05/2012," 1,504.42 "
Environmental Services,Highways & Transport,ETAE,Transport-Related Expenditure,Contract Hire - Mini Bus,AT BROWN (COACHES) LTD,22/05/2012, 512.33 
Environmental Services,Highways & Transport,ETAE,Transport-Related Expenditure,Contract Hire - Mini Bus,EXPRESS DRIVEN,08/05/2012, 715.00 
Environmental Services,Highways & Transport,ETAE,Transport-Related Expenditure,Contract Hire - Mini Bus,EXPRESS DRIVEN,08/05/2012," 1,035.00 "
Environmental Services,Highways & Transport,ETAE,Transport-Related Expenditure,Contract Hire - Mini Bus,AT BROWN (COACHES) LTD,22/05/2012," 1,007.15 "
Environmental Services,Highways & Transport,ETAE,Transport-Related Expenditure,Contract Hire - Mini Bus,AT BROWN (COACHES) LTD,22/05/2012, 976.45 
Environmental Services,Highways & Transport,ETAE,Transport-Related Expenditure,Contract Hire - Mini Bus,DIAMOND CARS (TELFORD) LTD,21/05/2012, 836.00 
Environmental Services,Highways & Transport,ETAE,Transport-Related Expenditure,Contract Hire - Mini Bus,DIAMOND CARS (TELFORD) LTD,21/05/2012," 1,166.88 "
Environmental Services,Highways & Transport,ETAE,Transport-Related Expenditure,Contract Hire - Mini Bus,EXPRESS TRAVEL,21/05/2012," 1,045.00 "
Environmental Services,Highways & Transport,ETAE,Transport-Related Expenditure,Contract Hire - Mini Bus,M & B MINIBUSES LTD,21/05/2012," 1,980.00 "
Environmental Services,Highways & Transport,ETAE,Transport-Related Expenditure,Contract Hire - Mini Bus,EXPRESS TRAVEL,21/05/2012," 1,045.00 "
Environmental Services,Highways & Transport,ETAE,Transport-Related Expenditure,Contract Hire - Mini Bus,M & B MINIBUSES LTD,02/05/2012," 3,985.74 "
Environmental Services,Highways & Transport,ETAE,Transport-Related Expenditure,Contract Hire - Mini Bus,SHAWS TRAVEL LTD,21/05/2012, 979.00 
Environmental Services,Highways & Transport,ETAE,Transport-Related Expenditure,Contract Hire - Mini Bus,SHAWS TRAVEL LTD,21/05/2012," 1,034.00 "
Environmental Services,Highways & Transport,ETAE,Transport-Related Expenditure,Contract Hire - Mini Bus,SHAWS TRAVEL LTD,21/05/2012," 1,034.00 "
Environmental Services,Highways & Transport,ETAE,Transport-Related Expenditure,Contract Hire - Mini Bus,SHAWS TRAVEL LTD,21/05/2012, 902.00 
Environmental Services,Highways & Transport,ETAE,Transport-Related Expenditure,Contract Hire - Mini Bus,EXPRESS TRAVEL,21/05/2012," 1,009.80 "
Environmental Services,Highways & Transport,ETAE,Transport-Related Expenditure,Transport Contractors,M H ELCOCK & SON LTD T/A ELCOCK REISEN,21/05/2012," 2,310.00 "
Environmental Services,Highways & Transport,ETAE,Transport-Related Expenditure,Transport Contractors,M H ELCOCK & SON LTD T/A ELCOCK REISEN,21/05/2012," 2,255.00 "
Environmental Services,Highways & Transport,ETAE,Transport-Related Expenditure,Transport Contractors,AT BROWN (COACHES) LTD,22/05/2012, 655.40 
Environmental Services,Highways & Transport,ETAE,Transport-Related Expenditure,Transport Contractors,RIVERSIDE COACHWAYS,15/05/2012, 520.00 
Environmental Services,Highways & Transport,ETAE,Transport-Related Expenditure,Transport Contractors,SHROPSHIRE COUNCIL,02/05/2012," 1,285.20 "
Environmental Services,Highways & Transport,ETAE,Transport-Related Expenditure,Transport Contractors,M H ELCOCK & SON LTD T/A ELCOCK REISEN,21/05/2012," 2,915.00 "
Environmental Services,Highways & Transport,ETAE,Transport-Related Expenditure,Transport Contractors,SHROPSHIRE COUNCIL,02/05/2012," 1,050.60 "
Environmental Services,Highways & Transport,ETAE,Transport-Related Expenditure,Transport Contractors,SHROPSHIRE COUNCIL,01/05/2012," 2,376.00 "
Environmental Services,Highways & Transport,ETAE,Transport-Related Expenditure,Transport Contractors,M & B MINIBUSES LTD,21/05/2012," 1,727.00 "
Environmental Services,Highways & Transport,ETAF,Transport-Related Expenditure,Transport Contractors,M H ELCOCK & SON LTD T/A ELCOCK REISEN,02/05/2012," 6,491.10 "
Environmental Services,Highways & Transport,ETAF,Transport-Related Expenditure,Transport Contractors,STAFFORDSHIRE COUNTY COUNCIL,11/05/2012," 2,146.42 "
Environmental Services,Highways & Transport,ETAF,Transport-Related Expenditure,Transport Contractors,ARRIVA MIDLANDS NORTH LIMITED,10/05/2012," 10,000.00 "
Environmental Services,Highways & Transport,ETAF,Transport-Related Expenditure,Transport Contractors,M H ELCOCK & SON LTD T/A ELCOCK REISEN,10/05/2012," 2,151.66 "
Environmental Services,Highways & Transport,ETAF,Transport-Related Expenditure,Transport Contractors,M H ELCOCK & SON LTD T/A ELCOCK REISEN,10/05/2012," 2,683.82 "
Environmental Services,Highways & Transport,ETAG,Transport-Related Expenditure,Vehicle Parts,P LEEK COMMERCIAL REPAIRS LTD,28/05/2012, 546.56 
Environmental Services,Highways & Transport,ETAL,Supplies & Services,Equipment - Purchase,Red Zulu Limited,14/05/2012," 5,983.44 "
Environmental Services,Highways & Transport,WEAR,Capital Expenditure,Payments to Contractor,MCPHILLIPS (WELLINGTON) LTD,25/05/2012," 201,730.73 "
Environmental Services,Highways & Transport,WEAR,Capital Expenditure,Marketing / Advertising,TEC3D LTD,09/05/2012," 2,790.00 "
Family & Community Services,Early Years Childcare,GEAD,Supplies & Services,Other Services,HOME-START TELFORD & WREKIN,23/05/2012," 5,180.00 "
Family & Community Services,Extended Services,JCAG,Third Party Payments,Agency Services,SOVA,15/05/2012," 1,626.75 "
Family & Community Services,Safer Communities,GCAA,Income,Other Contributions,WEST MERCIA POLICE AUTHORITY,16/05/2012," 1,125.00 "
Finance,Employment Services,FEAC,Employees,Recruitment Interview,CRIMINAL RECORDS BUREAU,03/05/2012," 4,514.00 "
Finance,Finance,FHAB,Supplies & Services,Other Services,ALLPAY.NET LIMITED,09/05/2012," 2,598.53 "
Finance,Finance,FHAB,Supplies & Services,Other Services,ALLPAY.NET LIMITED,09/05/2012, 909.33 
Finance,Finance Manager (Capital & Infrastructure based Services),FFAA,Transport-Related Expenditure,Tax,HM REVENUE & CUSTOMS,08/05/2012," 12,128.92 "
Finance,Finance Manager (Corporate Finance & Customer Services),FFAE,Supplies & Services,Conference Expenses,ALARM,22/05/2012, 545.00 
Finance,Finance Manager (Corporate Finance & Customer Services),FFAE,Supplies & Services,Miscellaneous Insurance,AON LTD,18/05/2012," 16,630.97 "
Finance,Finance Manager (Corporate Finance & Customer Services),FFAE,Supplies & Services,Miscellaneous Insurance,AON LTD,18/05/2012," 41,340.00 "
Finance,Finance Manager (Corporate Finance & Customer Services),FFAE,Supplies & Services,Miscellaneous Insurance,AON LTD,18/05/2012," 21,015.96 "
Finance,Finance Manager (Corporate Finance & Customer Services),FFAE,Supplies & Services,Miscellaneous Insurance,AON LTD,18/05/2012," 46,673.92 "
Finance,Finance Manager (Corporate Finance & Customer Services),FFAE,Supplies & Services,Miscellaneous Insurance,AON LTD,18/05/2012," 371,737.76 "
Finance,Finance Manager (Corporate Finance & Customer Services),FFAE,Supplies & Services,Miscellaneous Insurance,AON LTD,17/05/2012," 2,330.25 "
Finance,Finance Manager (Corporate Finance & Customer Services),FFAE,Supplies & Services,Miscellaneous Insurance,AON LTD,17/05/2012," 1,356.80 "
Finance,Finance Manager (Corporate Finance & Customer Services),FFAE,Supplies & Services,Miscellaneous Insurance,AON LTD,21/05/2012," 8,394.14 "
Finance,Finance Manager (Corporate Finance & Customer Services),FFAE,Supplies & Services,Miscellaneous Insurance,AON LTD,21/05/2012," 3,629.58 "
Finance,Finance Manager (Corporate Finance & Customer Services),MAAC,Employees,Agency Supply Costs,COMENSURA LTD,11/05/2012," 26,506.77 "
Finance,Finance Manager (Corporate Finance & Customer Services),MAAC,Employees,Agency Supply Costs,COMENSURA LTD,31/05/2012," 35,304.01 "
Finance,Finance Manager (Corporate Finance & Customer Services),MAAC,Employees,Agency Supply Costs,COMENSURA LTD,31/05/2012," 31,756.43 "
Finance,Finance Manager (Corporate Finance & Customer Services),MAAC,Employees,Agency Supply Costs,COMENSURA LTD,22/05/2012," 26,466.87 "
Finance,Finance Manager (Corporate Finance & Customer Services),MAAC,Employees,Agency Supply Costs,COMENSURA LTD,03/05/2012," 25,194.38 "
Governance,Audit & Assurance,BAAA,Supplies & Services,Consultants Fees,DELOITTE & TOUCHE PUBLIC SECTOR INT AUD,16/05/2012," 4,250.00 "
Governance,Democratic Services,BDAE,Supplies & Services,Comp Hardware (Purch / Hire),SPECIALIST COMPUTERS CENTRES PLC,09/05/2012, 742.11 
Governance,Governance,MAAF,Supplies & Services,Other Expenses,SHROPSHIRE COUNCIL,22/05/2012," 189,291.00 "
Housing & Planning,Development Management,DDAC,Supplies & Services,Legal Expenses,WHITE YOUNG GREEN CONSULTING LTD,03/05/2012," 2,450.00 "
Housing & Planning,Development Management,DDAC,Supplies & Services,Legal Expenses,WHITE YOUNG GREEN CONSULTING LTD,08/05/2012," 1,225.00 "
Housing & Planning,Development Management,DDAC,Supplies & Services,Legal Expenses,WHITE YOUNG GREEN CONSULTING LTD,08/05/2012," 1,225.00 "
Housing & Planning,Development Management,DDAC,Supplies & Services,Legal Expenses,NO 5 CHAMBERS LIMITED,22/05/2012," 3,850.00 "
Housing & Planning,Development Management,DDAC,Supplies & Services,Legal Expenses,RICHARD KIMBLIN,22/05/2012, 600.00 
Housing & Planning,Development Management,DDAC,Supplies & Services,Legal Expenses,NO 5 CHAMBERS LIMITED,22/05/2012," 6,125.00 "
Housing & Planning,Development Management,DDAC,Supplies & Services,Legal Expenses,NO 5 CHAMBERS LIMITED,22/05/2012," 4,875.00 "
Housing & Planning,Development Management,DDAC,Supplies & Services,Legal Expenses,WHITE YOUNG GREEN CONSULTING LTD,03/05/2012," 14,522.50 "
Housing & Planning,"Environmental Health, Trading Standards & Licensing",DEAA,Supplies & Services,Subscriptions,SHROPSHIRE COUNCIL,03/05/2012, 750.00 
Housing & Planning,Housing,DHAF,Premises-Related Expenditure,Bed & Breakfast Charges,WESTBROOK HOUSE,23/05/2012, 752.00 
Housing & Planning,Housing,DHAF,Premises-Related Expenditure,Bed & Breakfast Charges,THE GALLERY GUEST HOUSE,23/05/2012, 800.00 
Housing & Planning,Housing,DHAF,Premises-Related Expenditure,Bed & Breakfast Charges,THE GALLERY GUEST HOUSE,23/05/2012, 560.00 
Housing & Planning,Housing,DHAF,Premises-Related Expenditure,Bed & Breakfast Charges,THE FIRS GUEST HOUSE,17/05/2012," 2,495.00 "
Housing & Planning,Housing,DHAF,Premises-Related Expenditure,Bed & Breakfast Charges,Charnwood Guesthouse,28/05/2012, 630.00 
Housing & Planning,Housing,DHAF,Premises-Related Expenditure,Bed & Breakfast Charges,THE FIRS GUEST HOUSE,28/05/2012," 1,980.00 "
Housing & Planning,Housing,DHAF,Premises-Related Expenditure,Bed & Breakfast Charges,THE FIRS GUEST HOUSE,31/05/2012," 1,690.00 "
Housing & Planning,Housing,DHAF,Premises-Related Expenditure,Bed & Breakfast Charges,OLD VICARAGE,31/05/2012," 1,050.00 "
Housing & Planning,Housing,DHAF,Premises-Related Expenditure,Bed & Breakfast Charges,OLD VICARAGE,31/05/2012," 1,535.00 "
Housing & Planning,Housing,DHAF,Premises-Related Expenditure,Bed & Breakfast Charges,OLD VICARAGE,31/05/2012," 1,050.00 "
Housing & Planning,Housing,DHAF,Premises-Related Expenditure,Bed & Breakfast Charges,OLD VICARAGE,31/05/2012," 1,535.00 "
Housing & Planning,Housing,DHAF,Premises-Related Expenditure,Bed & Breakfast Charges,OLD VICARAGE,31/05/2012," 1,330.00 "
Housing & Planning,Housing,DHAF,Premises-Related Expenditure,Bed & Breakfast Charges,OLD VICARAGE,31/05/2012," 1,070.00 "
Housing & Planning,Housing,DHAF,Premises-Related Expenditure,Bed & Breakfast Charges,THE FIRS GUEST HOUSE,18/05/2012," 2,325.00 "
Housing & Planning,Housing,DHAF,Premises-Related Expenditure,Bed & Breakfast Charges,OLD VICARAGE,01/05/2012," 2,460.00 "
Housing & Planning,Housing,DHAF,Premises-Related Expenditure,Bed & Breakfast Charges,OLD VICARAGE,01/05/2012," 2,280.00 "
Housing & Planning,Housing,DHAF,Premises-Related Expenditure,Bed & Breakfast Charges,THE FIRS GUEST HOUSE,01/05/2012," 1,470.00 "
Housing & Planning,Housing,DHAF,Premises-Related Expenditure,Bed & Breakfast Charges,THE GALLERY GUEST HOUSE,01/05/2012, 560.00 
Housing & Planning,Housing,DHAF,Premises-Related Expenditure,Bed & Breakfast Charges,Charnwood Guesthouse,31/05/2012, 630.00 
Housing & Planning,Housing,DHAF,Premises-Related Expenditure,Bed & Breakfast Charges,THE GALLERY GUEST HOUSE,02/05/2012, 560.00 
Housing & Planning,Housing,DHAF,Premises-Related Expenditure,Bed & Breakfast Charges,THE FIRS GUEST HOUSE,02/05/2012," 1,605.00 "
Housing & Planning,Housing,DHAG,Premises-Related Expenditure,Other Energy Costs,AR TREBLE & A TREBLE,31/05/2012," 1,150.00 "
Housing & Planning,Housing,DHAG,Premises-Related Expenditure,Leasehold Rents,REDACTED PERSONAL INFORMATION,14/05/2012, 506.70 
Housing & Planning,Housing,DHAG,Premises-Related Expenditure,Leasehold Rents,AR TREBLE & A TREBLE,31/05/2012, 710.58 
Housing & Planning,Housing,DHAJ,Supplies & Services,Security Services,RMP SPECIALIST SERVICES LIMITED,23/05/2012," 2,730.00 "
Housing & Planning,Housing,DHAK,Supplies & Services,Other Office Expenses,TRIO FURNISHINGS LTD,23/05/2012," 1,011.00 "
Housing & Planning,Housing,DHAP,Premises-Related Expenditure,Planned Repairs,WEST MERCIA SUPPLIES Catalogue Supplies (None Utility),01/05/2012," 1,692.13 "
Housing & Planning,Housing,DHAP,Premises-Related Expenditure,Electricity,WEST MERCIA SUPPLIES Catalogue Supplies (None Utility),01/05/2012," 1,863.91 "
Housing & Planning,Housing,DHAP,Premises-Related Expenditure,Sewage Charges,SEVERN TRENT WATER LTD,01/05/2012, 877.40 
Housing & Planning,Housing,DHAT,Supplies & Services,Materials,QUICK SKIPS (TELFORD) LTD,22/05/2012," 1,200.00 "
Housing & Planning,Housing,DHAT,Supplies & Services,Subscriptions,NORTHERN HOUSING CONSORTIUM LTD,31/05/2012, 885.00 
Housing & Planning,Housing,DHAW,Supplies & Services,Other Grants (Expenses),SHROPSHIRE INSULATION LTD,14/05/2012," 1,019.23 "
Housing & Planning,Housing,DHAW,Supplies & Services,Other Grants (Expenses),THERMOWALL,16/05/2012," 2,292.15 "
Housing & Planning,Housing,DHAW,Supplies & Services,Other Grants (Expenses),THERMOWALL,16/05/2012," 1,544.10 "
Housing & Planning,Housing,DHAW,Supplies & Services,Other Grants (Expenses),PILOT HEAT,31/05/2012," 1,234.26 "
Housing & Planning,Housing,DHAW,Supplies & Services,Other Grants (Expenses),PILOT HEAT,29/05/2012, 979.47 
Housing & Planning,Housing,WDAD,Capital Expenditure,Other Capital Expenditure,JULIE WESTON LETTINGS,31/05/2012, 850.00 
Housing & Planning,Housing,WDAF,Capital Expenditure,Fixtures & Fittings & Equipment,MP BUILDING & PLUMBING LTD,31/05/2012," 4,403.75 "
Housing & Planning,Housing,WDAF,Capital Expenditure,Other Capital Expenditure,STANNAH LIFT SERVICES LTD,08/05/2012," 1,691.00 "
Housing & Planning,Housing,WDAF,Capital Expenditure,Other Capital Expenditure,MASTERDECK LIMITED,14/05/2012," 2,825.00 "
Housing & Planning,Housing,WDAF,Capital Expenditure,Other Capital Expenditure,STANNAH LIFT SERVICES LTD,14/05/2012," 3,713.00 "
Housing & Planning,Housing,WDAF,Capital Expenditure,Other Capital Expenditure,ROSEMONT BUILDING CONTRACTORS,14/05/2012," 2,886.25 "
Housing & Planning,Housing,WDAF,Capital Expenditure,Other Capital Expenditure,M J PERRINS,14/05/2012," 4,678.55 "
Housing & Planning,Housing,WDAF,Capital Expenditure,Other Capital Expenditure,R E BROWN BUILDING CONTRACTS,01/05/2012," 5,970.23 "
Housing & Planning,Housing,WDAF,Capital Expenditure,Other Capital Expenditure,PILOT HEAT,02/05/2012," 2,043.32 "
Housing & Planning,Housing,WDAF,Capital Expenditure,Other Capital Expenditure,AIDS & ADAPTIONS LTD,02/05/2012," 1,499.13 "
Housing & Planning,Housing,WDAF,Capital Expenditure,Other Capital Expenditure,AIDS & ADAPTIONS LTD,09/05/2012," 3,318.00 "
Housing & Planning,Housing,WDAF,Capital Expenditure,Other Capital Expenditure,M J PERRINS,09/05/2012," 10,000.00 "
Housing & Planning,Housing,WDAF,Capital Expenditure,Other Capital Expenditure,GM HEATING & PLUMBING LTD,01/05/2012," 2,498.37 "
Housing & Planning,Housing,WDAF,Capital Expenditure,Other Capital Expenditure,JOHN GILLESPIE CONTRACTORS LTD,01/05/2012," 3,871.41 "
Housing & Planning,Housing,WDAF,Capital Expenditure,Other Capital Expenditure,AIDS & ADAPTIONS LTD,01/05/2012," 4,840.00 "
Housing & Planning,Housing,WDAF,Capital Expenditure,Other Capital Expenditure,STANNAH LIFT SERVICES LTD,01/05/2012," 1,521.00 "
Housing & Planning,Housing,WDAF,Capital Expenditure,Other Capital Expenditure,R E BROWN BUILDING CONTRACTS,01/05/2012," 3,395.09 "
Housing & Planning,Housing,WDAF,Capital Expenditure,Other Capital Expenditure,SHEEN WINDOWS TELFORD,24/05/2012, 645.00 
Housing & Planning,Housing,WDAF,Capital Expenditure,Other Capital Expenditure,STANNAH LIFT SERVICES LTD,24/05/2012," 1,295.00 "
Housing & Planning,Housing,WDAF,Capital Expenditure,Other Capital Expenditure,STANNAH LIFT SERVICES LTD,24/05/2012," 1,295.00 "
Housing & Planning,Housing,WDAF,Capital Expenditure,Other Capital Expenditure,REDACTED PERSONAL INFORMATION,24/05/2012," 2,865.00 "
Housing & Planning,Housing,WDAF,Capital Expenditure,Other Capital Expenditure,AIDS & ADAPTIONS LTD,24/05/2012," 3,940.77 "
Housing & Planning,Housing,WDAF,Capital Expenditure,Other Capital Expenditure,POLLOCK LIFTS,24/05/2012," 7,258.00 "
Housing & Planning,Housing,WDAF,Capital Expenditure,Other Capital Expenditure,R E BROWN BUILDING CONTRACTS,24/05/2012," 9,146.71 "
Housing & Planning,Housing,WDAF,Capital Expenditure,Other Capital Expenditure,BOURNVILLE VILLAGE TRUST,24/05/2012, 980.78 
Housing & Planning,Housing,WDAF,Capital Expenditure,Other Capital Expenditure,STANNAH LIFT SERVICES LTD,24/05/2012, 638.64 
Housing & Planning,Housing,WDAF,Capital Expenditure,Other Capital Expenditure,GM HEATING & PLUMBING LTD,30/05/2012," 1,960.85 "
Housing & Planning,Housing,WDAF,Capital Expenditure,Other Capital Expenditure,ROSEMONT BUILDING CONTRACTORS,15/05/2012," 7,106.94 "
Housing & Planning,Housing,WDAF,Capital Expenditure,Other Capital Expenditure,E DAVIES & SON,01/05/2012," 2,250.00 "
Housing & Planning,Housing,WDAF,Capital Expenditure,Other Capital Expenditure,MARTIN EVANS CONSTRUCTION LTD,31/05/2012," 1,694.85 "
Housing & Planning,Housing,WDAF,Capital Expenditure,Other Capital Expenditure,PILOT HEAT,24/05/2012, 552.22 
Housing & Planning,Housing,WDAF,Capital Expenditure,Other Capital Expenditure,MARTIN EVANS CONSTRUCTION LTD,14/05/2012," 3,768.95 "
Housing & Planning,Housing,WDAF,Capital Expenditure,Other Capital Expenditure,STANNAH LIFT SERVICES LTD,09/05/2012," 1,899.00 "
Housing & Planning,Housing,WDAF,Capital Expenditure,Other Capital Expenditure,STANNAH LIFT SERVICES LTD,09/05/2012," 1,521.00 "
Housing & Planning,Housing,WDAF,Capital Expenditure,Other Capital Expenditure,MP BUILDING & PLUMBING LTD,09/05/2012," 3,524.90 "
Housing & Planning,Housing,WDAF,Capital Expenditure,Other Capital Expenditure,ULTIMATE SYSTEMS,03/05/2012," 5,250.00 "
Housing & Planning,Housing,WDSC,Capital Expenditure,Payments to Contractor,AE PROPERTY MAINTENACE,01/05/2012, 945.00 
Housing & Planning,Housing,WDSD,Capital Expenditure,Payments to Contractor,National Grid Gas plc,03/05/2012," 3,079.94 "
Housing & Planning,Housing,WDSP,Capital Expenditure,Payments to Contractor,BIRSE CIVILS LIMITED,24/05/2012," 18,721.41 "
Housing & Planning,Housing,WDST,Capital Expenditure,Payments to Contractor,GRANVILLE CONSTRUCTION & MAINTENANCE LTD,31/05/2012, 827.56 
Housing & Planning,Housing,WDST,Capital Expenditure,Payments to Contractor,PRYCE (BUILDERS) LTD,31/05/2012," 7,170.00 "
Housing & Planning,Strategic Housing,DHAL,Supplies & Services,Comp Software (Purch / Hire),CAPITA BUSINESS SERVICES LTD,29/05/2012," 5,677.14 "
Property & ICT,Building Schools for the Future (BSF),WGAC,Capital Expenditure,External Professional Fees,MOTT MACDONALD LIMITED,18/05/2012," 1,174.04 "
Property & ICT,Building Schools for the Future (BSF),WGAD,Capital Expenditure,Legal Fees,NABARRO,29/05/2012," 2,702.80 "
Property & ICT,Building Schools for the Future (BSF),WGAD,Capital Expenditure,External Professional Fees,MOTT MACDONALD LIMITED,18/05/2012," 3,894.41 "
Property & ICT,Building Schools for the Future (BSF),WGAD,Capital Expenditure,Payments to Contractor,KIER CONSTRUCTION LTD,30/05/2012," 505,492.00 "
Property & ICT,Building Schools for the Future (BSF),WGAD,Capital Expenditure,Payments to Contractor,KIER CONSTRUCTION LTD,30/05/2012," 4,057.00 "
Property & ICT,Building Schools for the Future (BSF),WGAD,Capital Expenditure,Payments to Contractor,KIER CONSTRUCTION LTD,01/05/2012," 8,707.00 "
Property & ICT,Building Schools for the Future (BSF),WGAD,Capital Expenditure,Payments to Contractor,KIER CONSTRUCTION LTD,01/05/2012," 367,337.00 "
Property & ICT,Building Schools for the Future (BSF),WGAF,Capital Expenditure,Legal Fees,WARD HADAWAY SOLICITORS,25/05/2012, 935.70 
Property & ICT,Building Schools for the Future (BSF),WGAG,Capital Expenditure,Payments to Contractor,KIER CONSTRUCTION LTD,26/05/2012," 415,981.77 "
Property & ICT,Building Schools for the Future (BSF),WGAG,Capital Expenditure,Payments to Contractor,MOTT MACDONALD LIMITED,23/05/2012," 13,260.62 "
Property & ICT,Building Schools for the Future (BSF),WGAG,Capital Expenditure,Payments to Contractor,RMP SPECIALIST SERVICES LIMITED,22/05/2012," 3,434.40 "
Property & ICT,Building Schools for the Future (BSF),WGAG,Capital Expenditure,Community Safety,MOTT MACDONALD LIMITED,18/05/2012, 647.49 
Property & ICT,Building Schools for the Future (BSF),WGAH,Capital Expenditure,Payments to Contractor,JONES & HAMPTON LTD,29/05/2012, 514.35 
Property & ICT,Building Schools for the Future (BSF),WGAJ,Capital Expenditure,Legal Fees,WARD HADAWAY SOLICITORS,25/05/2012," 1,679.00 "
Property & ICT,Building Schools for the Future (BSF),WGAJ,Capital Expenditure,External Professional Fees,MOTT MACDONALD LIMITED,18/05/2012," 2,035.02 "
Property & ICT,Building Schools for the Future (BSF),WGAP,Capital Expenditure,Payments to Contractor,KIER CONSTRUCTION LTD,26/05/2012," 118,690.52 "
Property & ICT,Building Schools for the Future (BSF),WGAT,Capital Expenditure,Payments to Contractor,KIER CONSTRUCTION LTD,29/05/2012," 60,552.95 "
Property & ICT,Capital and Facilities Management,CFAA,Premises-Related Expenditure,Grounds Maintenance - Other,NOBRIDGE LTD,18/05/2012," 2,776.18 "
Property & ICT,Capital and Facilities Management,CFAB,Transport-Related Expenditure,Licences,THE EDUCATIONAL RECORDING AGENCY LTD,04/05/2012," 6,381.46 "
Property & ICT,Capital and Facilities Management,CFAD,Supplies & Services,Security Services,BUSINESS WATCH GUARDING LIMITED,16/05/2012," 17,719.35 "
Property & ICT,Capital and Facilities Management,CFAE,Employees,Training Expenses,SHROPSHIRE TRAINING,21/05/2012," 1,485.00 "
Property & ICT,Capital and Facilities Management,CFAE,Premises-Related Expenditure,Water Rates,SEVERN TRENT WATER LTD,01/05/2012," 4,173.24 "
Property & ICT,Capital and Facilities Management,CFAK,Premises-Related Expenditure,Gas,BRITISH GAS BUSINESS,01/05/2012," 1,360.30 "
Property & ICT,Capital and Facilities Management,CFAK,Premises-Related Expenditure,Gas,BRITISH GAS BUSINESS,18/05/2012, 810.24 
Property & ICT,Capital and Facilities Management,CFAS,Employees,Training Expenses,WENLOCK HEALTH & SAFETY LTD,24/05/2012, 760.00 
Property & ICT,Capital and Facilities Management,CFAS,Premises-Related Expenditure,Clean Mats & Toilet Requisites,WEST MERCIA SUPPLIES Catalogue Supplies (None Utility),22/05/2012," 1,882.11 "
Property & ICT,Capital and Facilities Management,CFAS,Premises-Related Expenditure,energy,West Mercia Energy (WME),16/05/2012," 3,040.53 "
Property & ICT,Capital and Facilities Management,CFAS,Premises-Related Expenditure,energy,West Mercia Energy (WME),16/05/2012," 1,003.53 "
Property & ICT,Capital and Facilities Management,CFAS,Premises-Related Expenditure,Contract Cleaning,CLEANIT CLEANING SERVICES,01/05/2012, 677.25 
Property & ICT,Capital and Facilities Management,CFAS,Premises-Related Expenditure,Contract Cleaning,CLEANIT CLEANING SERVICES,01/05/2012, 677.25 
Property & ICT,Capital and Facilities Management,CFAS,Premises-Related Expenditure,Contract Cleaning,CLEANIT CLEANING SERVICES,04/05/2012, 677.25 
Property & ICT,Capital and Facilities Management,CFAS,Premises-Related Expenditure,Contract Cleaning,CLEANIT CLEANING SERVICES,16/05/2012, 677.25 
Property & ICT,Capital and Facilities Management,CFAS,Premises-Related Expenditure,Contract Cleaning,CLEANIT CLEANING SERVICES,16/05/2012, 677.25 
Property & ICT,Capital and Facilities Management,CFAS,Supplies & Services,Equipment - Repair,A3 MACHINES LIMITED,16/05/2012, 550.00 
Property & ICT,Estates & Investments,CEAC,Premises-Related Expenditure,Gas,TOTAL GAS & POWER LIMITED,31/05/2012," 8,932.78 "
Property & ICT,Estates & Investments,CEAC,Supplies & Services,Security Services,BUSINESS WATCH GUARDING LIMITED,10/05/2012," 1,981.19 "
Property & ICT,Estates & Investments,CEAE,Premises-Related Expenditure,R&M -Building Other,SHROPSHIRE HEATING SERVICES LTD,16/05/2012, 576.17 
Property & ICT,Estates & Investments,CEAE,Supplies & Services,Telephones,MIDLAND TML,31/05/2012," 1,374.23 "
Property & ICT,Estates & Investments,CEAH,Income,Rents - General,ORBIT PROPERTY MANAGEMENT LTD,23/05/2012," 15,354.29 "
Property & ICT,Estates & Investments,CEAH,Income,Fees & Charges General,JONES & HAMPTON LTD,15/05/2012," 1,628.78 "
Property & ICT,Estates & Investments,CEAH,Income,Fees & Charges General,JONES & HAMPTON LTD,15/05/2012," 1,282.60 "
Property & ICT,Estates & Investments,CEAH,Income,Fees & Charges General,JONES & HAMPTON LTD,15/05/2012," 1,900.69 "
Property & ICT,Estates & Investments,CEAH,Premises-Related Expenditure,Dilapidations,GRANVILLE CONSTRUCTION & MAINTENANCE LTD,31/05/2012," 1,352.00 "
Property & ICT,Estates & Investments,CEAH,Premises-Related Expenditure,Dilapidations,GRANVILLE CONSTRUCTION & MAINTENANCE LTD,31/05/2012," 2,012.18 "
Property & ICT,Estates & Investments,CEAH,Premises-Related Expenditure,Dilapidations,GRANVILLE CONSTRUCTION & MAINTENANCE LTD,31/05/2012," 1,500.00 "
Property & ICT,Estates & Investments,CEAH,Premises-Related Expenditure,Dilapidations,GRANVILLE CONSTRUCTION & MAINTENANCE LTD,31/05/2012," 3,500.00 "
Property & ICT,Estates & Investments,CEAH,Premises-Related Expenditure,Dilapidations,GRANVILLE CONSTRUCTION & MAINTENANCE LTD,10/05/2012," 3,500.00 "
Property & ICT,Estates & Investments,CEAH,Premises-Related Expenditure,Dilapidations,GRANVILLE CONSTRUCTION & MAINTENANCE LTD,10/05/2012," 1,500.00 "
Property & ICT,Estates & Investments,CEAH,Premises-Related Expenditure,Dilapidations,GRANVILLE CONSTRUCTION & MAINTENANCE LTD,10/05/2012," 3,011.40 "
Property & ICT,Estates & Investments,CEAH,Premises-Related Expenditure,Dilapidations,GRANVILLE CONSTRUCTION & MAINTENANCE LTD,10/05/2012," 1,290.60 "
Property & ICT,Estates & Investments,CEAH,Premises-Related Expenditure,Contingency Repairs,JOHNSON FELLOWS,15/05/2012, 750.00 
Property & ICT,Estates & Investments,CEAH,Premises-Related Expenditure,R&M -Buildings DLO Charge,GRANVILLE CONSTRUCTION & MAINTENANCE LTD,31/05/2012," 1,300.00 "
Property & ICT,Estates & Investments,CEAH,Premises-Related Expenditure,R&M -Buildings DLO Charge,GRANVILLE CONSTRUCTION & MAINTENANCE LTD,09/05/2012," 2,500.00 "
Property & ICT,Estates & Investments,CEAH,Premises-Related Expenditure,R&M -Buildings DLO Charge,GRANVILLE CONSTRUCTION & MAINTENANCE LTD,09/05/2012, 785.00 
Property & ICT,Estates & Investments,CEAH,Premises-Related Expenditure,Electricity,NPOWER LIMITED,25/05/2012, 738.70 
Property & ICT,Estates & Investments,CEAH,Premises-Related Expenditure,Insurance Loss Over 250,WINDOW & DOOR CONTRACT SERVICES,25/05/2012, 644.36 
Property & ICT,Estates & Investments,CEAH,Supplies & Services,Payment Of Income Collected,HSBC EQUIPMENT FINANCE (UK) LIMITED,31/05/2012," 5,668.87 "
Property & ICT,Estates & Investments,CEAH,Supplies & Services,Payment Of Income Collected,HSBC EQUIPMENT FINANCE (UK) LIMITED,31/05/2012," 1,500.00 "
Property & ICT,Estates & Investments,CEAH,Supplies & Services,Payment Of Income Collected,HSBC EQUIPMENT FINANCE (UK) LIMITED,31/05/2012," 7,854.17 "
Property & ICT,Estates & Investments,CEAH,Supplies & Services,Payment Of Income Collected,HSBC EQUIPMENT FINANCE (UK) LIMITED,30/05/2012," 20,258.91 "
Property & ICT,Estates & Investments,CEAH,Supplies & Services,Other Expenses,DAMPGUARD & PLASTERING LTD,18/05/2012," 1,195.00 "
Property & ICT,Estates & Investments,CEAJ,Income,Rents - General,ORBIT PROPERTY MANAGEMENT LTD,23/05/2012," 8,542.61 "
Property & ICT,Estates & Investments,CEAL,Employees,Agency Supply Costs,JUDD FARRIS LIMITED,16/05/2012, 925.00 
Property & ICT,Estates & Investments,CEAN,Premises-Related Expenditure,R&M -Buildings DLO Charge,RCS ROOFING CONSTRUCTION SERVICES LTD,24/05/2012, 875.00 
Property & ICT,Estates & Investments,CEAN,Premises-Related Expenditure,R&M -Building Other,ELITE PUMPING SERVICES LIMITED,09/05/2012," 1,070.00 "
Property & ICT,Estates & Investments,CEAN,Premises-Related Expenditure,R&M -Building Other,FINNIGAN & HARPER LIMITED,16/05/2012," 8,400.00 "
Property & ICT,Estates & Investments,CEAN,Premises-Related Expenditure,R&M -Building Other,FINNIGAN & HARPER LIMITED,16/05/2012," 4,200.00 "
Property & ICT,Estates & Investments,CEAN,Premises-Related Expenditure,Electricity,NPOWER LIMITED,31/05/2012,-878.89 
Property & ICT,Estates & Investments,CEAN,Premises-Related Expenditure,Electricity,NPOWER LIMITED,31/05/2012,-969.92 
Property & ICT,Estates & Investments,CEAN,Premises-Related Expenditure,Electricity,NPOWER LIMITED,31/05/2012,-983.39 
Property & ICT,Estates & Investments,CEAN,Premises-Related Expenditure,Electricity,NPOWER LIMITED,31/05/2012,-711.25 
Property & ICT,Estates & Investments,CEAN,Premises-Related Expenditure,Electricity,NPOWER LIMITED,17/05/2012, 983.39 
Property & ICT,Estates & Investments,CEAN,Premises-Related Expenditure,Electricity,E.ON,04/05/2012," 1,556.95 "
Property & ICT,Estates & Investments,CEAN,Premises-Related Expenditure,Electricity,NPOWER LIMITED,16/05/2012," 2,779.10 "
Property & ICT,Estates & Investments,CEAN,Premises-Related Expenditure,Electricity,NPOWER LIMITED,16/05/2012," 2,060.29 "
Property & ICT,Estates & Investments,CEAN,Premises-Related Expenditure,Gas,E.ON,09/05/2012," 2,842.10 "
Property & ICT,Estates & Investments,CEAN,Premises-Related Expenditure,Water Rates,SEVERN TRENT WATER LTD,14/05/2012, 845.70 
Property & ICT,Estates & Investments,CEAN,Supplies & Services,Security Services,RMP SPECIALIST SERVICES LIMITED,14/05/2012," 1,145.40 "
Property & ICT,Estates & Investments,WGNE,Capital Expenditure,External Professional Fees,MARTIN ROBESON & PARTNERS LTD,10/05/2012," 6,000.00 "
Property & ICT,Estates & Investments,WGNE,Capital Expenditure,External Professional Fees,FPCR ENVIRONMENT & DESIGN LTD,30/05/2012," 1,625.00 "
Property & ICT,Estates & Investments,WGNE,Capital Expenditure,External Professional Fees,FPCR ENVIRONMENT & DESIGN LTD,30/05/2012, 637.50 
Property & ICT,Estates & Investments,WGNE,Capital Expenditure,External Professional Fees,PHIL JONES ASSOCIATES LTD,30/05/2012," 1,464.00 "
Property & ICT,Estates & Investments,WGNE,Capital Expenditure,External Professional Fees,RPS DESIGN LTD,30/05/2012," 6,895.00 "
Property & ICT,Estates & Investments,WGNE,Capital Expenditure,External Professional Fees,PHIL JONES ASSOCIATES LTD,30/05/2012," 1,467.50 "
Property & ICT,Estates & Investments,WGNE,Capital Expenditure,External Professional Fees,PHIL JONES ASSOCIATES LTD,30/05/2012, 935.00 
Property & ICT,Estates & Investments,WGNE,Capital Expenditure,External Professional Fees,PHIL JONES ASSOCIATES LTD,30/05/2012, 756.66 
Property & ICT,Estates & Investments,WGNE,Capital Expenditure,External Professional Fees,FPCR ENVIRONMENT & DESIGN LTD,30/05/2012, 567.50 
Property & ICT,Estates & Investments,WGNE,Capital Expenditure,External Professional Fees,REDACTED PERSONAL INFORMATION,22/05/2012," 3,525.00 "
Property & ICT,Facilities (Catering & Cleaning),CAMA,Employees,Training Expenses,CIEH,23/05/2012," 1,141.30 "
Property & ICT,Facilities (Catering & Cleaning),CAMA,Premises-Related Expenditure,Clean Mats & Toilet Requisites,WEST MERCIA SUPPLIES Catalogue Supplies (None Utility),21/05/2012," 3,568.39 "
Property & ICT,Facilities (Catering & Cleaning),CAMA,Supplies & Services,Subscriptions,APSE,21/05/2012," 3,019.00 "
Property & ICT,Facilities (Catering & Cleaning),CASP,Supplies & Services,Equipment - Purchase,ERIC NEVILLE CATERING SUPPLIES LTD,17/05/2012," 8,923.00 "
Property & ICT,Facilities (Catering & Cleaning),CASP,Supplies & Services,Provisions,SMART FOOD,21/05/2012, 506.83 
Property & ICT,Facilities (Catering & Cleaning),CASP,Supplies & Services,Provisions,BIKOLD,23/05/2012," 1,613.00 "
Property & ICT,Facilities (Catering & Cleaning),CASS,Supplies & Services,Provisions,DO NOT USE FOR ORDERING- DIRECT BILLING ONLY,17/05/2012, 502.62 
Property & ICT,Facilities (Catering & Cleaning),CASS,Supplies & Services,Provisions,SMART FOOD,25/05/2012, 508.58 
Property & ICT,Facilities (Catering & Cleaning),CASS,Supplies & Services,Provisions,SMART FOOD,25/05/2012, 574.80 
Property & ICT,Facilities (Catering & Cleaning),CASS,Supplies & Services,Provisions,BIKOLD,03/05/2012, 774.65 
Property & ICT,ICT - Infrastructure & Operations,CBAC,Supplies & Services,Comp Hardware (Purch / Hire),SPECIALIST COMPUTERS CENTRES PLC,02/05/2012," 8,100.00 "
Property & ICT,ICT - Infrastructure & Operations,CBAE,Supplies & Services,Mobile Phones,ORANGE PERSONAL COMM SERVICES LTD,23/05/2012," 7,278.69 "
Property & ICT,ICT - Infrastructure & Operations,CBAF,Supplies & Services,Equipment - Purchase,CCS MEDIA LIMITED,24/05/2012," 2,720.00 "
Property & ICT,ICT - Infrastructure & Operations,CBAF,Supplies & Services,Comp Hardware (Purch / Hire),SPECIALIST COMPUTERS CENTRES PLC,22/05/2012," 4,853.00 "
Property & ICT,ICT - Infrastructure & Operations,CBAF,Supplies & Services,Comp Hardware (Purch / Hire),AXIELL LTD,11/05/2012," 3,600.00 "
Property & ICT,ICT - Infrastructure & Operations,CBAF,Supplies & Services,Comp Hardware (Purch / Hire),ORANGE PERSONAL COMM SERVICES LTD,09/05/2012, 738.00 
Property & ICT,ICT - Infrastructure & Operations,CBAF,Supplies & Services,Mobile Phones,ORANGE PERSONAL COMM SERVICES LTD,11/05/2012, 741.93 
Property & ICT,ICT - Infrastructure & Operations,CBAG,Income,Fees & Charges General,CIT VENDOR FINANCE (UK) LIMITED,24/05/2012," 1,011.14 "
Property & ICT,ICT - Infrastructure & Operations,CBAG,Income,Fees & Charges General,KBC LEASE (UK) LTD,24/05/2012," 4,410.71 "
Property & ICT,ICT - Infrastructure & Operations,CBAG,Income,Fees & Charges General,ASSET ADVANTAGE LIMITED,09/05/2012, 649.65 
Property & ICT,ICT - Infrastructure & Operations,CBAG,Income,Fees & Charges General,CIT VENDOR FINANCE (UK) LIMITED,09/05/2012," 1,985.92 "
Property & ICT,ICT - Infrastructure & Operations,CBAG,Supplies & Services,Telephones,VIRGIN MEDIA BUSINESS,09/05/2012," 6,483.83 "
Property & ICT,ICT - Infrastructure & Operations,CBAG,Supplies & Services,Mobile Phones,ORANGE PERSONAL COMM SERVICES LTD,09/05/2012," 1,654.11 "
Property & ICT,ICT - Infrastructure & Operations,CBAG,Supplies & Services,Mobile Phones,ORANGE PERSONAL COMM SERVICES LTD,09/05/2012," 1,074.84 "
Property & ICT,ICT - Infrastructure & Operations,CBAG,Supplies & Services,Mobile Phones,ORANGE PERSONAL COMM SERVICES LTD,09/05/2012," 14,553.62 "
Property & ICT,ICT - Infrastructure & Operations,CBAG,Supplies & Services,Mobile Phones,ORANGE PERSONAL COMM SERVICES LTD,09/05/2012," 4,683.11 "
Property & ICT,ICT - Infrastructure & Operations,CBAJ,Supplies & Services,Comp Hardware (Purch / Hire),SPECIALIST COMPUTERS CENTRES PLC,22/05/2012," 3,667.00 "
Property & ICT,ICT - Infrastructure & Operations,CBAJ,Supplies & Services,Comp Hardware (Purch / Hire),SPECIALIST COMPUTERS CENTRES PLC,02/05/2012," 9,783.10 "
Property & ICT,ICT - Infrastructure & Operations,CBAJ,Supplies & Services,Comp Hardware (Purch / Hire),SPECIALIST COMPUTERS CENTRES PLC,02/05/2012," 1,258.00 "
Property & ICT,ICT - Infrastructure & Operations,CBAJ,Supplies & Services,Comp Hardware (Purch / Hire),SPECIALIST COMPUTERS CENTRES PLC,02/05/2012," 1,541.55 "
Property & ICT,ICT - Infrastructure & Operations,CBAJ,Supplies & Services,Comp Hardware (Purch / Hire),SPECIALIST COMPUTERS CENTRES PLC,02/05/2012," 1,251.78 "
Property & ICT,ICT - Infrastructure & Operations,CBAJ,Supplies & Services,Comp Hardware (Purch / Hire),SPECIALIST COMPUTERS CENTRES PLC,09/05/2012," 2,921.52 "
Property & ICT,ICT - Infrastructure & Operations,CBAJ,Supplies & Services,Comp Hardware (Purch / Hire),SPECIALIST COMPUTERS CENTRES PLC,25/05/2012," 2,175.72 "
Property & ICT,ICT - Infrastructure & Operations,CBAJ,Supplies & Services,Comp Hardware (Purch / Hire),SPECIALIST COMPUTERS CENTRES PLC,25/05/2012," 12,329.08 "
Property & ICT,ICT - Infrastructure & Operations,CBAJ,Supplies & Services,Comp Hardware (Purch / Hire),SPECIALIST COMPUTERS CENTRES PLC,09/05/2012," 3,083.10 "
Property & ICT,ICT - Infrastructure & Operations,CBAJ,Supplies & Services,Comp Hardware (Purch / Hire),SPECIALIST COMPUTERS CENTRES PLC,22/05/2012," 4,110.80 "
Property & ICT,ICT - Infrastructure & Operations,CBAJ,Supplies & Services,Comp Hardware (Purch / Hire),SPECIALIST COMPUTERS CENTRES PLC,22/05/2012," 3,083.10 "
Property & ICT,ICT - Infrastructure & Operations,CBAJ,Supplies & Services,Comp Hardware (Purch / Hire),SPECIALIST COMPUTERS CENTRES PLC,22/05/2012," 13,870.20 "
Property & ICT,ICT - Infrastructure & Operations,CBAJ,Supplies & Services,Comp Hardware (Purch / Hire),SPECIALIST COMPUTERS CENTRES PLC,22/05/2012," 1,767.60 "
Property & ICT,ICT - Infrastructure & Operations,CBAJ,Supplies & Services,Comp Hardware (Purch / Hire),SPECIALIST COMPUTERS CENTRES PLC,22/05/2012, 986.70 
Property & ICT,ICT - Infrastructure & Operations,CBAJ,Supplies & Services,Comp Hardware (Purch / Hire),SPECIALIST COMPUTERS CENTRES PLC,22/05/2012," 13,870.20 "
Property & ICT,ICT - Infrastructure & Operations,CBAJ,Supplies & Services,Comp Hardware (Purch / Hire),SPECIALIST COMPUTERS CENTRES PLC,02/05/2012," 3,234.84 "
Property & ICT,ICT - Infrastructure & Operations,CBAJ,Supplies & Services,Comp Hardware (Purch / Hire),SPECIALIST COMPUTERS CENTRES PLC,22/05/2012, 534.40 
Property & ICT,ICT - Infrastructure & Operations,CBAJ,Supplies & Services,Comp Hardware (Purch / Hire),SPECIALIST COMPUTERS CENTRES PLC,02/05/2012," 1,450.48 "
Property & ICT,ICT - Infrastructure & Operations,CBAJ,Supplies & Services,Comp Hardware (Purch / Hire),SPECIALIST COMPUTERS CENTRES PLC,22/05/2012," 1,145.12 "
Property & ICT,ICT - Infrastructure & Operations,CBAJ,Supplies & Services,Comp Hardware (Purch / Hire),SPECIALIST COMPUTERS CENTRES PLC,22/05/2012," 3,494.18 "
Property & ICT,ICT - Infrastructure & Operations,CBAJ,Supplies & Services,Comp Hardware (Purch / Hire),SPECIALIST COMPUTERS CENTRES PLC,22/05/2012," 3,025.50 "
Property & ICT,ICT - Infrastructure & Operations,CBAJ,Supplies & Services,Comp Hardware (Purch / Hire),SPECIALIST COMPUTERS CENTRES PLC,10/05/2012, 989.70 
Property & ICT,ICT - Infrastructure & Operations,CBAJ,Supplies & Services,Comp Hardware (Purch / Hire),SPECIALIST COMPUTERS CENTRES PLC,02/05/2012," 32,589.90 "
Property & ICT,ICT - Infrastructure & Operations,CBAJ,Supplies & Services,Comp Hardware (Purch / Hire),SPECIALIST COMPUTERS CENTRES PLC,02/05/2012," 16,781.52 "
Property & ICT,ICT - Infrastructure & Operations,CBAJ,Supplies & Services,Comp Hardware (Purch / Hire),SPECIALIST COMPUTERS CENTRES PLC,02/05/2012," 4,100.88 "
Property & ICT,ICT - Infrastructure & Operations,CBAJ,Supplies & Services,Comp Hardware (Purch / Hire),SPECIALIST COMPUTERS CENTRES PLC,02/05/2012, 561.12 
Property & ICT,ICT - Infrastructure & Operations,CBAJ,Supplies & Services,Comp Hardware (Purch / Hire),SPECIALIST COMPUTERS CENTRES PLC,02/05/2012," 1,008.00 "
Property & ICT,ICT - Infrastructure & Operations,CBAJ,Supplies & Services,Comp Hardware (Purch / Hire),SPECIALIST COMPUTERS CENTRES PLC,29/05/2012," 9,602.40 "
Property & ICT,ICT - Infrastructure & Operations,CBAJ,Supplies & Services,Comp Hardware (Purch / Hire),SPECIALIST COMPUTERS CENTRES PLC,29/05/2012," 1,541.60 "
Property & ICT,ICT - Infrastructure & Operations,CBAJ,Supplies & Services,Comp Hardware (Purch / Hire),SPECIALIST COMPUTERS CENTRES PLC,29/05/2012," 4,110.80 "
Property & ICT,ICT - Infrastructure & Operations,CBAJ,Supplies & Services,Comp Hardware (Purch / Hire),SPECIALIST COMPUTERS CENTRES PLC,21/05/2012, 575.60 
Property & ICT,ICT - Infrastructure & Operations,CBAJ,Supplies & Services,Comp Hardware (Purch / Hire),SPECIALIST COMPUTERS CENTRES PLC,21/05/2012, 575.60 
Property & ICT,ICT - Infrastructure & Operations,CBAJ,Supplies & Services,Comp Hardware (Purch / Hire),SPECIALIST COMPUTERS CENTRES PLC,21/05/2012," 12,381.80 "
Property & ICT,ICT - Infrastructure & Operations,CBAJ,Supplies & Services,Comp Hardware (Purch / Hire),SPECIALIST COMPUTERS CENTRES PLC,02/05/2012, 500.04 
Property & ICT,ICT - Infrastructure & Operations,CBAJ,Supplies & Services,Comp Hardware (Purch / Hire),SPECIALIST COMPUTERS CENTRES PLC,25/05/2012, 534.40 
Property & ICT,ICT - Infrastructure & Operations,CBAJ,Supplies & Services,Comp Hardware (Purch / Hire),SPECIALIST COMPUTERS CENTRES PLC,28/05/2012," 2,200.20 "
Property & ICT,ICT - Infrastructure & Operations,CBAJ,Supplies & Services,Comp Hardware (Purch / Hire),SPECIALIST COMPUTERS CENTRES PLC,21/05/2012, 657.80 
Property & ICT,ICT - Infrastructure & Operations,CBAJ,Supplies & Services,Comp Hardware (Purch / Hire),SPECIALIST COMPUTERS CENTRES PLC,21/05/2012," 1,315.60 "
Property & ICT,ICT - Infrastructure & Operations,CBAJ,Supplies & Services,Comp Hardware (Purch / Hire),SPECIALIST COMPUTERS CENTRES PLC,22/05/2012," 1,315.60 "
Property & ICT,ICT - Infrastructure & Operations,CBAJ,Supplies & Services,Comp Hardware (Purch / Hire),SPECIALIST COMPUTERS CENTRES PLC,21/05/2012," 10,000.80 "
Property & ICT,ICT - Infrastructure & Operations,CBAJ,Supplies & Services,Comp Hardware (Purch / Hire),SPECIALIST COMPUTERS CENTRES PLC,09/05/2012," 1,078.98 "
Property & ICT,ICT - Infrastructure & Operations,CBAJ,Supplies & Services,Computer Hardware (Maint),CCS MEDIA LIMITED,11/05/2012, 725.00 
Property & ICT,ICT - Infrastructure & Operations,CBAJ,Supplies & Services,Computer Hardware (Maint),SERVO LIMITED,22/05/2012," 2,470.00 "
Property & ICT,ICT - Infrastructure & Operations,CBAJ,Supplies & Services,Comp Software (Purch / Hire),SITE CONFIDENCE LTD,17/05/2012," 1,106.00 "
Property & ICT,ICT - Infrastructure & Operations,CBAJ,Supplies & Services,External Computer Use,JORAPH MANAGED SERVICES LTD,09/05/2012," 3,000.00 "
Property & ICT,ICT - Infrastructure & Operations,CBAJ,Supplies & Services,Telephones,BRITISH TELECOMMUNICATIONS PLC,08/05/2012," 8,949.14 "
Property & ICT,ICT - Infrastructure & Operations,CBAJ,Supplies & Services,Telephones,BRITISH TELECOMMUNICATIONS PLC,08/05/2012," 2,085.38 "
Property & ICT,ICT - Infrastructure & Operations,CBAJ,Supplies & Services,Telecomms,Cable & Wireless Worldwide,29/05/2012," 1,513.27 "
Property & ICT,ICT - Infrastructure & Operations,CBAJ,Supplies & Services,Carriage/Delivery Charge,Cable & Wireless Worldwide,22/05/2012,"-2,543.64 "
Property & ICT,ICT - Infrastructure & Operations,CBAK,Supplies & Services,Printing - Print Room,XEROX (UK) LTD,28/05/2012," 13,749.42 "
Property & ICT,ICT - Infrastructure & Operations,CBAK,Supplies & Services,Printing - Other,XEROX FINANCE,30/05/2012," 2,182.48 "
Property & ICT,ICT - Infrastructure & Operations,CBAK,Supplies & Services,Printing - Other,SILK GROUP LTD,29/05/2012,-896.00 
Property & ICT,ICT - Infrastructure & Operations,CBAK,Supplies & Services,Printing - Other,SILK GROUP LTD,25/05/2012, 896.00 
Property & ICT,ICT - Infrastructure & Operations,CBAK,Supplies & Services,Printing - Other,LEXON,24/05/2012," 1,675.36 "
Property & ICT,ICT - Infrastructure & Operations,CBAK,Supplies & Services,Printing - Other,LEXON,24/05/2012, 865.82 
Property & ICT,ICT - Infrastructure & Operations,CBAK,Supplies & Services,Printing - Other,LEXON,24/05/2012," 5,744.72 "
Property & ICT,ICT - Infrastructure & Operations,CBAK,Supplies & Services,Printing - Other,XEROX FINANCE,28/05/2012," 79,360.06 "
Property & ICT,ICT - Infrastructure & Operations,CBAK,Supplies & Services,Printing - Other,MARKETING AT THE MILL,24/05/2012, 955.00 
Property & ICT,ICT - Infrastructure & Operations,CBAK,Supplies & Services,Stationery,WEST MERCIA SUPPLIES Catalogue Supplies (None Utility),09/05/2012, 602.90 
Property & ICT,ICT - Infrastructure & Operations,CBAK,Supplies & Services,Stationery,WEST MERCIA SUPPLIES Catalogue Supplies (None Utility),23/05/2012, 517.00 
Property & ICT,ICT - Infrastructure & Operations,CBAK,Supplies & Services,Comp Hardware (Purch / Hire),Clear View Communications,14/05/2012," 1,016.00 "
Property & ICT,ICT - Infrastructure & Operations,WCAG,Capital Expenditure,Payments to Contractor,NADCOM COMMUNICATIONS LTD,02/05/2012, 670.00 
Property & ICT,ICT - Infrastructure & Operations,WCAG,Capital Expenditure,Payments to Contractor,NORTHGATE INFORMATION SOLUTIONS UK LTD,10/05/2012, 500.00 
Property & ICT,ICT - Infrastructure & Operations,WCAG,Capital Expenditure,Payments to Contractor,PHOENIX SOFTWARE LTD,04/05/2012, 589.58 
Property & ICT,Operational Property,CAAG,Employees,Continued Professional Development,ROYAL INSTITUTE OF BRITISH ARCHITECTS,21/05/2012, 600.00 
Property & ICT,Operational Property,CAAG,Income,Fees & Charges General,HOARE LEA CONSULTING ENGINEERS,25/05/2012," 4,837.50 "
Property & ICT,Operational Property,CAAG,Income,Fees & Charges General,OCLC (UK) LIMITED,18/05/2012," 4,837.50 "
Property & ICT,Operational Property,CAAG,Supplies & Services,Equipment - Hire,STANFORD MARSH FINANCE LTD,04/05/2012," 1,325.00 "
Property & ICT,Operational Property,CAAH,Premises-Related Expenditure,R&M -Buildings DLO Charge,JONES & HAMPTON LTD,31/05/2012," 1,793.12 "
Property & ICT,Operational Property,CAAH,Premises-Related Expenditure,R&M -Buildings DLO Charge,REDACTED PERSONAL INFORMATION,28/05/2012," 2,605.24 "
Property & ICT,Operational Property,CAAH,Premises-Related Expenditure,R&M -Buildings DLO Charge,PREMIER CARPETS & FLOORING LTD,28/05/2012, 565.80 
Property & ICT,Operational Property,CAAH,Premises-Related Expenditure,R&M -Buildings DLO Charge,TREBLE PUMPING SERVICES LTD,17/05/2012, 799.00 
Property & ICT,Operational Property,CAAH,Premises-Related Expenditure,R&M -Buildings DLO Charge,WINDOW & DOOR CONTRACT SERVICES,02/05/2012, 518.42 
Property & ICT,Operational Property,CAAH,Premises-Related Expenditure,R&M -Buildings DLO Charge,PP ELECTRICAL SERVICES,02/05/2012," 1,018.00 "
Property & ICT,Operational Property,CAAH,Premises-Related Expenditure,R&M -Buildings DLO Charge,PP ELECTRICAL SERVICES,02/05/2012, 648.00 
Property & ICT,Operational Property,CAAH,Premises-Related Expenditure,R&M -Buildings DLO Charge,GRANVILLE CONSTRUCTION & MAINTENANCE LTD,02/05/2012, 950.73 
Property & ICT,Operational Property,CAAH,Premises-Related Expenditure,R&M -Buildings DLO Charge,RCS ROOFING CONSTRUCTION SERVICES LTD,02/05/2012," 1,365.59 "
Property & ICT,Operational Property,COAE,Premises-Related Expenditure,R&M -Buildings DLO Charge,SHROPSHIRE HEATING SERVICES LTD,24/05/2012," 1,502.67 "
Property & ICT,Operational Property,COAE,Premises-Related Expenditure,R&M -Buildings DLO Charge,TELFORD & WREKIN SERVICES LTD,16/05/2012," 2,690.98 "
Property & ICT,Operational Property,COAE,Premises-Related Expenditure,R&M -Buildings DLO Charge,KONE PLC,04/05/2012," 3,995.28 "
Property & ICT,Operational Property,COAE,Premises-Related Expenditure,Electricity,WEST MERCIA SUPPLIES Catalogue Supplies (None Utility),09/05/2012," 11,584.00 "
Property & ICT,Operational Property,COAE,Premises-Related Expenditure,Sewage Charges,SEVERN TRENT WATER LTD,04/05/2012, 522.12 
Property & ICT,Operational Property,COAF,Supplies & Services,Comp Hardware (Purch / Hire),CONCERTO SUPPORT SERVICES LTD,02/05/2012," 6,300.00 "
Property & ICT,Operational Property,COAG,Premises-Related Expenditure,R&M WC Planned,ARJO LIMITED,02/05/2012, 515.90 
Property & ICT,Operational Property,COAG,Premises-Related Expenditure,R&M WC Planned,JONES & HAMPTON LTD,02/05/2012, 900.32 
Property & ICT,Operational Property,COAG,Premises-Related Expenditure,R&M WC Planned,JONES & HAMPTON LTD,01/05/2012, 630.42 
Property & ICT,Operational Property,COAG,Premises-Related Expenditure,R&M WC Planned,WINDOW & DOOR CONTRACT SERVICES,02/05/2012," 1,420.38 "
Property & ICT,Operational Property,COAG,Premises-Related Expenditure,R&M WC Planned,JONES & HAMPTON LTD,02/05/2012," 1,121.18 "
Property & ICT,Operational Property,COAG,Premises-Related Expenditure,R&M WC Planned,G LEDDINGTON (ELECTRICAL) LTD,10/05/2012, 542.60 
Property & ICT,Operational Property,COAG,Premises-Related Expenditure,R&M -Building Other,ADT FIRE & SECURITY PLC,02/05/2012," 1,007.00 "
Property & ICT,Operational Property,COAG,Premises-Related Expenditure,R&M -Building Other,ADT FIRE & SECURITY PLC,02/05/2012, 731.00 
Property & ICT,Operational Property,COAG,Premises-Related Expenditure,R&M -Building Other,SHROPSHIRE HEATING SERVICES LTD,09/05/2012," 1,051.42 "
Property & ICT,Operational Property,COAG,Premises-Related Expenditure,R&M Fixed Plant Other,ERIC NEVILLE CATERING SUPPLIES LTD,02/05/2012," 8,240.00 "
Property & ICT,Operational Property,COAG,Premises-Related Expenditure,R&M Fixed Plant Other,GRA-BERN,10/05/2012," 1,447.63 "
Property & ICT,Operational Property,COAH,Premises-Related Expenditure,Electricity,BRITISH GAS BUSINESS (ELECTRICITY),25/05/2012," 1,077.68 "
Property & ICT,Operational Property,COAH,Premises-Related Expenditure,Gas,West Mercia Energy (WME),25/05/2012, 810.01 
Property & ICT,Operational Property,COAH,Premises-Related Expenditure,Gas,E.ON,04/05/2012," 3,232.84 "
Property & ICT,Operational Property,COAJ,Premises-Related Expenditure,Gas,SHELL GAS DIRECT LTD,17/05/2012," 4,649.05 "
Property & ICT,Operational Property,WCAY,Capital Expenditure,Payments to Contractor,GRANVILLE CONSTRUCTION & MAINTENANCE LTD,21/05/2012, 943.15 
Property & ICT,Operational Property,WCAY,Capital Expenditure,Payments to Contractor,GRANVILLE CONSTRUCTION & MAINTENANCE LTD,21/05/2012," 1,769.59 "
Property & ICT,Operational Property,WCAY,Capital Expenditure,Payments to Contractor,GRANVILLE CONSTRUCTION & MAINTENANCE LTD,21/05/2012," 1,548.80 "
Property & ICT,Operational Property,WCAY,Capital Expenditure,Payments to Contractor,GRANVILLE CONSTRUCTION & MAINTENANCE LTD,21/05/2012," 2,323.20 "
Property & ICT,Operational Property,WCAY,Capital Expenditure,Payments to Contractor,HARROW GREEN LIMITED,21/05/2012," 2,860.44 "
Property & ICT,Operational Property,WCAY,Capital Expenditure,Payments to Contractor,STANFORD MARSH FINANCE LTD,21/05/2012, 699.00 
Property & ICT,Operational Property,WCAY,Capital Expenditure,Payments to Contractor,GRANVILLE CONSTRUCTION & MAINTENANCE LTD,21/05/2012, 968.56 
Property & ICT,Operational Property,WCAY,Capital Expenditure,Payments to Contractor,JORDAN LEWIS ASSOCIATES LTD,14/05/2012," 4,764.23 "
Property & ICT,Operational Property,WCAY,Capital Expenditure,Payments to Contractor,GRANVILLE CONSTRUCTION & MAINTENANCE LTD,14/05/2012," 2,643.00 "
Property & ICT,Operational Property,WCAY,Capital Expenditure,Payments to Contractor,HARROW GREEN LIMITED,14/05/2012," 2,851.30 "
Property & ICT,Operational Property,WCAY,Capital Expenditure,Payments to Contractor,HARROW GREEN LIMITED,14/05/2012," 2,341.70 "
Property & ICT,Operational Property,WCAY,Capital Expenditure,Payments to Contractor,KRM CONTRACTORS LTD,30/05/2012," 16,610.04 "
Property & ICT,Operational Property,WCAY,Capital Expenditure,Payments to Contractor,FLORIAN FIRE & SAFETY LTD,21/05/2012," 4,200.00 "
Property & ICT,Operational Property,WCAY,Capital Expenditure,Payments to Contractor,KRM CONTRACTORS LTD,24/05/2012," 33,467.45 "
Property & ICT,Operational Property,WCAY,Capital Expenditure,Payments to Contractor,WREKIN REMOVALS,02/05/2012," 8,142.50 "
Property & ICT,Operational Property,WCAY,Capital Expenditure,Payments to Contractor,WREKIN REMOVALS,02/05/2012, 950.00 
Property & ICT,Operational Property,WCAY,Capital Expenditure,Payments to Contractor,WREKIN REMOVALS,02/05/2012," 8,495.64 "
Property & ICT,Operational Property,WCAY,Capital Expenditure,Payments to Contractor,GRA-BERN,28/05/2012," 2,795.70 "
Property & ICT,Operational Property,WCAY,Capital Expenditure,Payments to Contractor,KRM CONTRACTORS LTD,28/05/2012," 3,883.57 "
Property & ICT,Operational Property,WCAY,Capital Expenditure,Payments to Contractor,KRM CONTRACTORS LTD,09/05/2012," 21,708.67 "
Property & ICT,Operational Property,WCAY,Capital Expenditure,Payments to Contractor,KRM CONTRACTORS LTD,09/05/2012," 10,783.62 "
Property & ICT,Operational Property,WCAY,Capital Expenditure,Computer Hardware,EUROPEAN ELECTRONIQUE LTD,02/05/2012," 1,825.00 "
Property & ICT,Operational Property,WCBA,Capital Expenditure,Plan Environment Services Fees,SHROPSHIRE HEATING SERVICES LTD,01/05/2012, 847.25 
Property & ICT,Operational Property,WCBA,Capital Expenditure,Plan Environment Services Fees,SHROPSHIRE HEATING SERVICES LTD,01/05/2012, 847.25 
Property & ICT,Operational Property,WCBA,Capital Expenditure,Payments to Contractor,G LEDDINGTON (ELECTRICAL) LTD,18/05/2012," 2,482.00 "
Property & ICT,Operational Property,WCBA,Capital Expenditure,Payments to Contractor,G LEDDINGTON (ELECTRICAL) LTD,18/05/2012," 2,528.00 "
Property & ICT,Operational Property,WCBA,Capital Expenditure,Payments to Contractor,GRANVILLE CONSTRUCTION & MAINTENANCE LTD,25/05/2012, 671.52 
Property & ICT,Operational Property,WCBA,Capital Expenditure,Payments to Contractor,G LEDDINGTON (ELECTRICAL) LTD,02/05/2012, 755.00 
Property & ICT,Operational Property,WCBA,Capital Expenditure,Payments to Contractor,COOPER & WILLIAMS LTD,02/05/2012," 1,180.32 "
Property & ICT,Operational Property,WCBA,Capital Expenditure,Payments to Contractor,CONCEPT ELEVATORS (MIDLANDS) LIMITED,10/05/2012, 520.00 
Property & ICT,Operational Property,WCBA,Capital Expenditure,Payments to Contractor,JONES & HAMPTON LTD,01/05/2012, 548.48 
Property & ICT,Operational Property,WCBA,Capital Expenditure,Payments to Contractor,STAR REFRIGERATION LTD,02/05/2012," 1,275.67 "
Property & ICT,Operational Property,WCBA,Capital Expenditure,Payments to Contractor,BOW CONSTRUCTION LTD,25/05/2012," 8,259.95 "
Property & ICT,Operational Property,WCBA,Capital Expenditure,Payments to Contractor,ADT FIRE & SECURITY PLC,10/05/2012," 4,889.00 "
Property & ICT,Operational Property,WCBA,Capital Expenditure,Payments to Contractor,LIFTING & HANDLING SOLUTIONS LTD,09/05/2012," 26,619.50 "
Property & ICT,Operational Property,WCBA,Capital Expenditure,Payments to Contractor,MIDLANDS POWER NETWORKS LTD,09/05/2012," 1,312.50 "
Property & ICT,Operational Property,WCBA,Capital Expenditure,Payments to Contractor,ARJO LIMITED,09/05/2012," 3,156.21 "
Property & ICT,Operational Property,WCOA,Capital Expenditure,Payments to Contractor,HEATRITE SERVICES,30/05/2012, 779.25 
Property & ICT,Operational Property,WCOA,Capital Expenditure,Payments to Contractor,OPENING THE BOOK PROMOTIONS LTD,30/05/2012, 695.00 
Property & ICT,Operational Property,WCOA,Capital Expenditure,Payments to Contractor,URS/Scott Wilson Ltd,17/05/2012," 2,300.00 "
Property & ICT,Operational Property,WCOA,Capital Expenditure,Payments to Contractor,HEATRITE SERVICES,30/05/2012, 945.00 
Property & ICT,Operational Property,WCOA,Capital Expenditure,Payments to Contractor,GLYN UPTON REMOVALS,30/05/2012," 6,094.00 "
Property & ICT,Operational Property,WCOA,Capital Expenditure,Payments to Contractor,GF TOMLINSON BIRMINGHAM LTD,28/05/2012," 144,255.29 "
Property & ICT,Operational Property,WCOA,Capital Expenditure,Payments to Contractor,SIGNS EXPRESS (TELFORD),09/05/2012," 1,656.00 "
Property & ICT,Operational Property,WCOA,Capital Expenditure,Payments to Contractor,SIGNS EXPRESS (TELFORD),09/05/2012," 2,205.00 "
Property & ICT,Operational Property,WCOA,Capital Expenditure,Payments to Contractor,SIGNS EXPRESS (TELFORD),09/05/2012," 8,556.00 "
Property & ICT,Operational Property,WCOA,Capital Expenditure,Payments to Contractor,SIGNS EXPRESS (TELFORD),09/05/2012," 2,350.00 "
Property & ICT,Operational Property,WCOA,Capital Expenditure,Payments to Contractor,SIGNS EXPRESS (TELFORD),09/05/2012, 587.00 
Property & ICT,Operational Property,WFAS,Capital Expenditure,Payments to Contractor,RCS ROOFING CONSTRUCTION SERVICES LTD,04/05/2012," 9,500.00 "
Property & ICT,Operational Property,WGCF,Capital Expenditure,Payments to Contractor,WELLINGTON INSULATION CO. LTD,18/05/2012," 1,315.00 "
Property & ICT,Operational Property,WGCF,Capital Expenditure,Payments to Contractor,TAYLORS MECHANICAL H & P SERVICES LTD,30/05/2012, 806.33 
Property & ICT,Operational Property,WGCF,Capital Expenditure,Payments to Contractor,TAYLORS MECHANICAL H & P SERVICES LTD,30/05/2012," 1,209.49 "
Property & ICT,Operational Property,WGCF,Capital Expenditure,Payments to Contractor,PREMIER CARPETS & FLOORING LTD,24/05/2012," 3,035.25 "
Property & ICT,Operational Property,WGCF,Capital Expenditure,Payments to Contractor,SHIFNAL ENVIRONMENTAL SAFETY LTD,10/05/2012," 3,998.00 "
Property & ICT,Operational Property,WGCF,Capital Expenditure,Payments to Contractor,SHIFNAL ENVIRONMENTAL SAFETY LTD,10/05/2012," 2,423.00 "
Property & ICT,Operational Property,WGCF,Capital Expenditure,Payments to Contractor,SHIFNAL ENVIRONMENTAL SAFETY LTD,10/05/2012," 1,110.00 "
Property & ICT,Operational Property,WGCF,Capital Expenditure,Payments to Contractor,SHIFNAL ENVIRONMENTAL SAFETY LTD,10/05/2012," 3,202.00 "
Property & ICT,Operational Property,WGCF,Capital Expenditure,Payments to Contractor,SHIFNAL ENVIRONMENTAL SAFETY LTD,10/05/2012," 3,748.00 "
Property & ICT,Operational Property,WGCF,Capital Expenditure,Payments to Contractor,SHIFNAL ENVIRONMENTAL SAFETY LTD,10/05/2012," 1,563.00 "
Property & ICT,Operational Property,WGCF,Capital Expenditure,Payments to Contractor,JONES & HAMPTON LTD,29/05/2012, 653.00 
Property & ICT,Operational Property,WGCF,Capital Expenditure,Payments to Contractor,GRANVILLE CONSTRUCTION & MAINTENANCE LTD,08/05/2012, 641.00 
Property & ICT,Operational Property,WGCF,Capital Expenditure,Payments to Contractor,WELLINGTON INSULATION CO. LTD,24/05/2012," 2,096.00 "
Property & ICT,Operational Property,WGCF,Capital Expenditure,Payments to Contractor,SHIFNAL ENVIRONMENTAL SAFETY LTD,10/05/2012," 2,544.00 "
Property & ICT,Operational Property,WGCF,Capital Expenditure,Payments to Contractor,SHIFNAL ENVIRONMENTAL SAFETY LTD,10/05/2012," 2,519.00 "
Property & ICT,Operational Property,WGCF,Capital Expenditure,Payments to Contractor,SHIFNAL ENVIRONMENTAL SAFETY LTD,10/05/2012," 2,268.00 "
Property & ICT,Operational Property,WGCF,Capital Expenditure,Other Capital Expenditure,FITZGERALD CONTRACTORS LTD,24/05/2012," 18,131.93 "
Property & ICT,Operational Property,WGCF,Capital Expenditure,Other Capital Expenditure,PEGASUS PLANNING GROUP LLP,29/05/2012," 3,503.00 "
Property & ICT,Operational Property,WGCF,Capital Expenditure,Other Capital Expenditure,PEGASUS PLANNING GROUP LLP,28/05/2012," 2,287.50 "
Property & ICT,Operational Property,WPAF,Capital Expenditure,Payments to Contractor,COOPER & WILLIAMS LTD,02/05/2012," 7,040.38 "
Property & ICT,Operational Property,WPCC,Capital Expenditure,Land Purchase,MFG SOLICITORS,08/05/2012," 30,668.52 "
Property & ICT,Operational Property,WPCC,Capital Expenditure,Legal Fees,MFG SOLICITORS,08/05/2012," 2,000.00 "
Property & ICT,Operational Property,WPCC,Capital Expenditure,Payments to Contractor,GRANVILLE CONSTRUCTION & MAINTENANCE LTD,01/05/2012," 2,397.00 "
Property & ICT,Operational Property,WPCC,Capital Expenditure,Payments to Contractor,GRANVILLE CONSTRUCTION & MAINTENANCE LTD,09/05/2012," 2,735.37 "
Property & ICT,Operational Property,WPCC,Capital Expenditure,Payments to Contractor,GRANVILLE CONSTRUCTION & MAINTENANCE LTD,01/05/2012," 1,598.00 "
Property & ICT,Operational Property,WPJF,Capital Expenditure,Payments to Contractor,TELFORD BUILDING CONTRACTORS,09/05/2012," 39,773.93 "
Property & ICT,Operational Property,WPMU,Capital Expenditure,Payments to Contractor,BARRY LOWE SURVEYS LTD,18/05/2012," 1,460.00 "
Property & ICT,Operational Property,WPRH,Capital Expenditure,Payments to Contractor,GRANVILLE CONSTRUCTION & MAINTENANCE LTD,09/05/2012," 6,000.00 "
Property & ICT,Operational Property,WPRH,Capital Expenditure,Payments to Contractor,GRANVILLE CONSTRUCTION & MAINTENANCE LTD,09/05/2012," 2,000.00 "
Property & ICT,Operational Property,WPRH,Capital Expenditure,Payments to Contractor,GRANVILLE CONSTRUCTION & MAINTENANCE LTD,09/05/2012," 2,625.60 "
Property & ICT,Operational Property,WPRH,Capital Expenditure,Payments to Contractor,GRANVILLE CONSTRUCTION & MAINTENANCE LTD,09/05/2012, 656.40 
Property & ICT,Operational Property,WPSG,Capital Expenditure,Payments to Contractor,PRYCE (BUILDERS) LTD,09/05/2012," 59,605.85 "
Property & ICT,Operational Property,WPWB,Capital Expenditure,Payments to Contractor,PRYCE (BUILDERS) LTD,17/05/2012," 14,237.50 "
Property & ICT,Operational Property,WPWL,Capital Expenditure,Payments to Contractor,KIER CONSTRUCTION LTD,30/05/2012," 21,014.00 "
Property & ICT,Operational Property,WPWL,Capital Expenditure,Payments to Contractor,KIER CONSTRUCTION LTD,01/05/2012," 5,542.00 "
Property & ICT,Operational Property,WPWR,Capital Expenditure,Payments to Contractor,SHIFNAL ENVIRONMENTAL SAFETY LTD,09/05/2012," 10,735.00 "
Property & ICT,Operational Property,WPWR,Capital Expenditure,Payments to Contractor,JACOBS ENGINEERING UK LIMITED,09/05/2012," 2,122.59 "
Property & ICT,Property & ICT,WCAK,Capital Expenditure,Payments to Contractor,BOW CONSTRUCTION LTD,11/05/2012," 288,432.23 "
Property & ICT,Property & ICT,WCAK,Capital Expenditure,Payments to Contractor,ONE STOP SHOP LTD,02/05/2012," 7,000.00 "
Property & ICT,Property & ICT,WCAK,Capital Expenditure,Payments to Contractor,RMP SPECIALIST SERVICES LIMITED,16/05/2012," 4,006.80 "
Property & ICT,Property & ICT,WCAN,Capital Expenditure,Payments to Contractor,VPS (UK) LTD,01/05/2012, 829.00 
Property & ICT,Property & ICT,WCAN,Capital Expenditure,Payments to Contractor,MORLAND UTILITIES LTD,22/05/2012," 3,163.00 "
Property & ICT,Property & ICT,WCAN,Capital Expenditure,Site Investigation,GROUND INVESTIGATION & PILING LTD,03/05/2012," 1,632.00 "
Property & ICT,Property & ICT,WCAR,Capital Expenditure,Payments to Contractor,RMP SPECIALIST SERVICES LIMITED,15/05/2012," 5,914.80 "
Property & ICT,Town Centre Project,WCCA,Capital Expenditure,External Professional Fees,MACE LTD,01/05/2012," 14,661.40 "
Property & ICT,Town Centre Project,WCCA,Capital Expenditure,External Professional Fees,MACE LTD,01/05/2012," 9,658.00 "
Property & ICT,Town Centre Project,WCCA,Capital Expenditure,External Professional Fees,MACE LTD,01/05/2012," 6,991.83 "
Property & ICT,Town Centre Project,WCCA,Capital Expenditure,External Professional Fees,MACE LTD,01/05/2012," 18,508.06 "
Property & ICT,Town Centre Project,WCCA,Capital Expenditure,External Professional Fees,MACE LTD,01/05/2012," 62,839.83 "
Property & ICT,Town Centre Project,WCCA,Capital Expenditure,External Professional Fees,MACE LTD,01/05/2012, 994.37 
Property & ICT,Town Centre Project,WCCA,Capital Expenditure,External Professional Fees,MACE LTD,01/05/2012, 662.90 
Property & ICT,Town Centre Project,WCCA,Capital Expenditure,External Professional Fees,MACE LTD,22/05/2012," 3,703.70 "
Property & ICT,Town Centre Project,WCCA,Capital Expenditure,External Professional Fees,MACE LTD,22/05/2012," 56,379.55 "
Property & ICT,Town Centre Project,WCCA,Capital Expenditure,External Professional Fees,MACE LTD,22/05/2012," 13,963.61 "
Property & ICT,Town Centre Project,WCCA,Capital Expenditure,External Professional Fees,MACE LTD,22/05/2012," 1,914.00 "
Property & ICT,Town Centre Project,WCCA,Capital Expenditure,External Professional Fees,MACE LTD,22/05/2012, 559.49 
Property & ICT,Town Centre Project,WCCA,Capital Expenditure,External Professional Fees,MACE LTD,22/05/2012, 839.24 
Property & ICT,Town Centre Project,WCCA,Capital Expenditure,External Professional Fees,MACE LTD,22/05/2012," 4,196.20 "
Property & ICT,Town Centre Project,WCCA,Capital Expenditure,Payments to Contractor,STAFFORD TREE SERVICE,01/05/2012, 700.00 
Property & ICT,Town Centre Project,WCCA,Capital Expenditure,Payments to Contractor,FITZGERALD CONTRACTORS LTD,21/05/2012," 28,596.43 "
Property & ICT,Town Centre Project,WCCA,Capital Expenditure,Payments to Contractor,MCPHILLIPS (WELLINGTON) LTD,11/05/2012," 1,222.61 "
Property & ICT,Town Centre Project,WCCA,Capital Expenditure,Payments to Contractor,MCPHILLIPS (WELLINGTON) LTD,11/05/2012," 14,806.01 "
Property & ICT,Town Centre Project,WCCA,Capital Expenditure,Payments to Contractor,MCPHILLIPS (WELLINGTON) LTD,11/05/2012," 24,116.81 "
Property & ICT,Town Centre Project,WCCA,Capital Expenditure,Payments to Contractor,MCPHILLIPS (WELLINGTON) LTD,11/05/2012," 88,500.29 "
Property & ICT,Town Centre Project,WCCA,Capital Expenditure,Payments to Contractor,ARROW ENERGY SOLUTIONS LTD,02/05/2012, 750.00 
Property & ICT,Town Centre Project,WCCA,Capital Expenditure,Payments to Contractor,PP ELECTRICAL SERVICES,29/05/2012," 11,283.35 "
Property & ICT,Town Centre Project,WCCA,Capital Expenditure,Computer Hardware,SYNETRIX LTD,22/05/2012," 2,418.00 "
Safeguarding (Adults & Children),Case Management & Children in Care,JMAB,Employees,Agency Supply Costs,AIR SOCIAL CARE,31/05/2012," 1,403.86 "
Safeguarding (Adults & Children),Case Management & Children in Care,JMAB,Employees,Agency Supply Costs,AIR SOCIAL CARE,16/05/2012," 1,368.79 "
Safeguarding (Adults & Children),Case Management & Children in Care,JMAB,Employees,Agency Supply Costs,AIR SOCIAL CARE,14/05/2012," 1,369.16 "
Safeguarding (Adults & Children),Case Management & Children in Care,JMAE,Supplies & Services,Other Services,LIVING SPRINGS FAMILY CENTRE,14/05/2012," 5,990.00 "
Safeguarding (Adults & Children),Case Management & Children in Care,JMAJ,Supplies & Services,Legal Expenses,CARTER BROWN LIMITED,04/05/2012, 980.90 
Safeguarding (Adults & Children),Early Intervention,GEAL,Premises-Related Expenditure,Gas,LAWLEY & OVERDALE PARISH COUNCIL,18/05/2012, 759.11 
Safeguarding (Adults & Children),Early Intervention,GEAM,Premises-Related Expenditure,Hire Of Rooms,NEWPORT COTTAGE CARE CENTRE,04/05/2012, 530.20 
Safeguarding (Adults & Children),Early Intervention,GEAM,Third Party Payments,Pre School Playgroups,CHILDCARE SOS,14/05/2012, 546.00 
Safeguarding (Adults & Children),Early Intervention,GYAE,Supplies & Services,Other Grants (Expenses),YOUTH SUPPORT SERVICES LTD,03/05/2012," 22,847.25 "
Safeguarding (Adults & Children),Early Intervention,GYAE,Supplies & Services,Other Grants (Expenses),YOUTH SUPPORT SERVICES LTD,03/05/2012,"-21,250.00 "
Safeguarding (Adults & Children),Early Intervention,GYAE,Supplies & Services,Other Grants (Expenses),YOUTH SUPPORT SERVICES LTD,03/05/2012," 21,250.00 "
Safeguarding (Adults & Children),Early Intervention,GYAK,Supplies & Services,Comp Software (Purch / Hire),PROSOLVE SOFTWARE LTD,28/05/2012," 1,300.00 "
Safeguarding (Adults & Children),Early Intervention,GYAL,Supplies & Services,Other Services,YOUTH SUPPORT SERVICES LTD,03/05/2012,"-1,697.00 "
Safeguarding (Adults & Children),Early Intervention,GYAL,Supplies & Services,Other Services,YOUTH SUPPORT SERVICES LTD,03/05/2012," 1,250.00 "
Safeguarding (Adults & Children),Early Intervention,GYAL,Supplies & Services,Other Services,YOUTH SUPPORT SERVICES LTD,03/05/2012," 1,697.00 "
Safeguarding (Adults & Children),Early Intervention,GYAL,Supplies & Services,Other Services,YOUTH SUPPORT SERVICES LTD,09/05/2012," 1,250.00 "
Safeguarding (Adults & Children),Early Intervention,JEAF,Supplies & Services,Other Grants (Expenses),SHROPSHIRE COMMUNITY HEALTH NHS TRUST,23/05/2012," 5,613.00 "
Safeguarding (Adults & Children),Placements & Fostering,JMAF,Supplies & Services,Legal,CONNECT CONTACT CENTRES,01/05/2012," 1,091.25 "
Safeguarding (Adults & Children),Placements & Fostering,JPAA,Supplies & Services,Wet Resale Provision,SHROPSHIRE COUNCIL,02/05/2012," 233,990.00 "
Safeguarding (Adults & Children),Placements & Fostering,JPAA,Supplies & Services,Other Services,BURY COUNCIL,30/05/2012," 8,759.00 "
Safeguarding (Adults & Children),Placements & Fostering,JPAD,Third Party Payments,External Foster Care Payments,FOSTER CARE ASSOCIATES LTD,30/05/2012," 3,763.05 "
Safeguarding (Adults & Children),Placements & Fostering,JPAD,Third Party Payments,External Foster Care Payments,CARE TECH FOSTER CARE LTD,11/05/2012," 3,419.79 "
Safeguarding (Adults & Children),Placements & Fostering,JPAD,Third Party Payments,External Foster Care Payments,CARE TECH FOSTER CARE LTD,11/05/2012," 3,419.79 "
Safeguarding (Adults & Children),Placements & Fostering,JPAD,Third Party Payments,External Foster Care Payments,CARE TECH FOSTER CARE LTD,11/05/2012," 3,419.79 "
Safeguarding (Adults & Children),Placements & Fostering,JPAD,Third Party Payments,External Foster Care Payments,CARE TECH FOSTER CARE LTD,11/05/2012," 3,419.79 "
Safeguarding (Adults & Children),Placements & Fostering,JPAD,Third Party Payments,External Foster Care Payments,SWIIS FOSTER CARE LTD,31/05/2012, 895.00 
Safeguarding (Adults & Children),Placements & Fostering,JPAD,Third Party Payments,External Foster Care Payments,FOSTER CARE ASSOCIATES LTD,11/05/2012," 3,042.00 "
Safeguarding (Adults & Children),Placements & Fostering,JPAD,Third Party Payments,External Foster Care Payments,FOSTER CARE ASSOCIATES LTD,11/05/2012," 3,423.00 "
Safeguarding (Adults & Children),Placements & Fostering,JPAD,Third Party Payments,External Foster Care Payments,FOSTER CARE ASSOCIATES LTD,11/05/2012," 3,423.00 "
Safeguarding (Adults & Children),Placements & Fostering,JPAD,Third Party Payments,External Foster Care Payments,FOSTER CARE ASSOCIATES LTD,15/05/2012," 3,334.18 "
Safeguarding (Adults & Children),Placements & Fostering,JPAD,Third Party Payments,External Foster Care Payments,INDEPENDENT CHILDCARE GROUP OF SCHOOLS L,15/05/2012,"-2,846.20 "
Safeguarding (Adults & Children),Placements & Fostering,JPAD,Third Party Payments,External Foster Care Payments,FOSTER CARE ASSOCIATES LTD,11/05/2012," 3,423.00 "
Safeguarding (Adults & Children),Placements & Fostering,JPAD,Third Party Payments,External Foster Care Payments,FOSTER CARE ASSOCIATES LTD,25/05/2012," 3,537.10 "
Safeguarding (Adults & Children),Placements & Fostering,JPAD,Third Party Payments,External Foster Care Payments,FAMILIES@FAMILYCARE,15/05/2012," 4,092.60 "
Safeguarding (Adults & Children),Placements & Fostering,JPAD,Third Party Payments,External Foster Care Payments,PROGRESS CHILDREN'S SERVICES LTD,31/05/2012," 3,682.80 "
Safeguarding (Adults & Children),Placements & Fostering,JPAD,Third Party Payments,External Foster Care Payments,ACTION FOR CHILDREN LIMITED,31/05/2012," 5,787.61 "
Safeguarding (Adults & Children),Placements & Fostering,JPAD,Third Party Payments,External Foster Care Payments,FOSTERING SOLUTIONS LTD,31/05/2012," 3,554.46 "
Safeguarding (Adults & Children),Placements & Fostering,JPAD,Third Party Payments,External Foster Care Payments,SWIIS FOSTER CARE LTD,10/05/2012, 895.00 
Safeguarding (Adults & Children),Placements & Fostering,JPAD,Third Party Payments,External Foster Care Payments,FOSTER CARE ASSOCIATES LTD,23/05/2012," 3,641.66 "
Safeguarding (Adults & Children),Placements & Fostering,JPAL,Third Party Payments,Joint Financing,SHROPSHIRE COUNCIL,02/05/2012," 34,200.00 "
Safeguarding (Adults & Children),Placements & Fostering,JPAM,Supplies & Services,Subscriptions,FOSTERING NETWORK,16/05/2012," 2,748.13 "
Safeguarding (Adults & Children),Placements & Fostering,JPAN,Supplies & Services,Play development,CASTLE HOMES CARE LIMITED,23/05/2012," 39,147.12 "
Safeguarding (Adults & Children),Placements & Fostering,JPAN,Third Party Payments,Residential Expenditure,YOUNG OPTIONS COLLEGE LTD,15/05/2012," 15,278.57 "
Safeguarding (Adults & Children),Placements & Fostering,JPAN,Third Party Payments,Residential Expenditure,YOUNG OPTIONS COLLEGE LTD,15/05/2012," 15,035.00 "
Safeguarding (Adults & Children),Placements & Fostering,JPAN,Third Party Payments,Residential Expenditure,CASTLE HOMES CARE LIMITED,23/05/2012," 39,147.12 "
Safeguarding (Adults & Children),Placements & Fostering,JPAN,Third Party Payments,Residential Expenditure,CASTLE HOMES CARE LIMITED,29/05/2012," 13,384.25 "
Safeguarding (Adults & Children),Placements & Fostering,JPAN,Third Party Payments,Residential Expenditure,CASTLE HOMES CARE LIMITED,29/05/2012," 13,384.25 "
Safeguarding (Adults & Children),Placements & Fostering,JPAN,Third Party Payments,Residential Expenditure,PROGRESS CHILDREN'S SERVICES LTD,31/05/2012," 14,799.09 "
Safeguarding (Adults & Children),Safeguarding Advisory,JAAC,Employees,Contract Staff,BRANNAN ASSOCIATES LTD,27/05/2012," 1,116.08 "
Safeguarding (Adults & Children),Safeguarding Advisory,JAAC,Employees,Training Expenses,NSPCC REGISTERED CHARITY,28/05/2012, 651.60 
Safeguarding (Adults & Children),Safeguarding Advisory,JAAC,Employees,Training Expenses,NSPCC REGISTERED CHARITY,27/05/2012, 654.00 
School Improvement,School Improvement,KHAB,Supplies & Services,Equipment - Purchase,AT BROWN (COACHES) LTD,18/05/2012, 624.00 
School Improvement,School Improvement,KHBG,Supplies & Services,Other Office Expenses,TELFORD & WREKIN SCHOOLS SPORTS ASSN,29/05/2012," 1,322.30 "
School Improvement,School Improvement Secondary,KSAC,Third Party Payments,Private Contractors,THE EDUCATION DEVELOPMENT SERVICE LTD,23/05/2012," 2,800.00 "
School Improvement,School Improvement Secondary,KSAC,Third Party Payments,Private Contractors,THE EDUCATION DEVELOPMENT SERVICE LTD,23/05/2012," 1,500.00 "
School Improvement,School Improvement Secondary,KSAC,Third Party Payments,Private Contractors,THE EDUCATION DEVELOPMENT SERVICE LTD,23/05/2012," 1,500.00 "
School Improvement,School Improvement Secondary,KSAC,Third Party Payments,Private Contractors,NACRO,01/05/2012," 4,000.00 "
School Improvement,School Improvement Secondary,KSAC,Third Party Payments,Private Contractors,NACRO,01/05/2012," 5,000.00 "
School Improvement,School Improvement Secondary,WKAM,Capital Expenditure,Computer Hardware,SPECIALIST COMPUTERS CENTRES PLC,09/05/2012," 3,116.00 "
School Improvement,School Improvement Secondary,WKAP,Capital Expenditure,Computer Hardware,NEWPORT GIRLS HIGH SCHOOL ACADEMY TRUST,21/05/2012," 20,043.00 "
School Improvement,School Improvement Secondary,WKAS,Capital Expenditure,Computer Hardware,SPECIALIST COMPUTERS CENTRES PLC,22/05/2012," 5,421.76 "
School Improvement,School Improvement Secondary,WKAS,Capital Expenditure,Computer Hardware,SPECIALIST COMPUTERS CENTRES PLC,21/05/2012, 930.52 
School Improvement,Schools,KCAN,Employees,Course Fees,Phenomenal Training Ltd,18/05/2012, 972.84 
School Improvement,Schools,KCAN,Income,Fees & Charges General,HOLIDAY INN TELFORD,23/05/2012," 1,290.83 "
School Improvement,Schools,KCAN,Income,Fees & Charges General,PBM INSPECTION SERVICES LTD,23/05/2012, 500.00 
,,,,,,," 9,046,734.66 "
